Workbook

Sheet INGRESO DE DATOS
A11: Cotización de Seguro Médico - Bupa Global Health Plans
A13: 1. INGRESE LOS DATOS DEL PROPUESTO ASEGURADO :
B15: Nombre del asegurado titular : | D15: Nombre del Cliente
B17: Número de adultos en la póliza : | D17: 2 | F17: Número de hijos en la póliza : | H17: 0
B19: Edad del asegurado titular : | D19: 34 | F19: Edad del (de la) cónyuge : | H19: 35
A21: 2. INGRESE EL NOMBRE DE LA AGENCIA ASESORA :
B23: Agencia / Agente : | D23: Nombre del Agente
A25: 3. ESCOJA EL PRODUCTO PARA VISUALIZAR LA COTIZACION RESPECTIVA :

Sheet Tablas (hidden)
A2: BUPA GLOBAL ELITE | I2: FACTOR MENSUAL: | K2: 0.0925
A3: TARIFAS ANUALES | I3: FACTOR TRIMESTRAL: | K3: 0.26875 | U3: 1000
A4: EDAD | I4: FACTOR SEMIANUAL: | K4: 0.5225 | U4: 2 | V4: 0 | W4: 0.045
C5: 1000 | D5: 2000 | E5: 3500 | F5: 5000 | G5: 10000 | I5: THIS COLUMN IS FOR THE 5% DISCOUNT | U5: tre | V5: sum usa | W5: recargos | X5: cotizador
A6: 18 | C6: 111137.5 | D6: 80237.5 | E6: 62125 | F6: 53937.5 | G6: 41900 | I6: 96337.5 | J6: 69712.5 | K6: 54087.5 | L6: 47025 | M6: 36650 | O6: TRUE | P6: TRUE | Q6: TRUE | R6: TRUE | S6: TRUE | U6: 20950 | V6: 20950 | W6: 942.75 | X6: 21892.75
A7: 19 | C7: 115450 | D7: 83375 | E7: 64550 | F7: 56000 | G7: 43537.5 | I7: 100062.5 | J7: 72400 | K7: 56187.5 | L7: 48812.5 | M7: 38075 | O7: TRUE | P7: TRUE | Q7: TRUE | R7: TRUE | S7: TRUE | U7: 21768.75 | V7: 21768.75 | W7: 979.59375 | X7: 22748.34375
A8: 20 | C8: 120075 | D8: 86700 | E8: 67162.5 | F8: 58275 | G8: 45287.5 | I8: 104037.5 | J8: 75275 | K8: 58425 | L8: 50775 | M8: 39575 | O8: TRUE | P8: TRUE | Q8: TRUE | R8: TRUE | S8: TRUE | U8: 22643.75 | V8: 22643.75 | W8: 1018.96875 | X8: 23662.71875
A9: 21 | C9: 124612.5 | D9: 89975 | E9: 69625 | F9: 60412.5 | G9: 46950 | I9: 107950 | J9: 78100 | K9: 60550 | L9: 52612.5 | M9: 41012.5 | O9: TRUE | P9: TRUE | Q9: TRUE | R9: TRUE | S9: TRUE | U9: 23475 | V9: 23475 | W9: 1056.375 | X9: 24531.375
A10: 22 | C10: 128912.5 | D10: 93050 | E10: 72012.5 | F10: 62512.5 | G10: 48562.5 | I10: 111662.5 | J10: 80750 | K10: 62612.5 | L10: 54412.5 | M10: 42400 | O10: TRUE | P10: TRUE | Q10: TRUE | R10: TRUE | S10: TRUE | U10: 24281.25 | V10: 24281.25 | W10: 1092.65625 | X10: 25373.90625
A11: 23 | C11: 133487.5 | D11: 96375 | E11: 74587.5 | F11: 64712.5 | G11: 50275 | I11: 115587.5 | J11: 83612.5 | K11: 64825 | L11: 56312.5 | M11: 43875 | O11: TRUE | P11: TRUE | Q11: TRUE | R11: TRUE | S11: TRUE | U11: 25137.5 | V11: 25137.5 | W11: 1131.1875 | X11: 26268.6875
A12: 24 | C12: 137987.5 | D12: 99587.5 | E12: 77062.5 | F12: 66887.5 | G12: 51925 | I12: 119475 | J12: 86375 | K12: 66975 | L12: 58187.5 | M12: 45312.5 | O12: TRUE | P12: TRUE | Q12: TRUE | R12: TRUE | S12: TRUE | U12: 25962.5 | V12: 25962.5 | W12: 1168.3125 | X12: 27130.8125
A13: 25 | C13: 142287.5 | D13: 102662.5 | E13: 79450 | F13: 68962.5 | G13: 53550 | I13: 123187.5 | J13: 89037.5 | K13: 69025 | L13: 59975 | M13: 46700 | O13: TRUE | P13: TRUE | Q13: TRUE | R13: TRUE | S13: TRUE | U13: 26775 | V13: 26775 | W13: 1204.875 | X13: 27979.875
A14: 26 | C14: 146825 | D14: 105975 | E14: 82000 | F14: 71162.5 | G14: 55275 | I14: 127100 | J14: 91887.5 | K14: 71225 | L14: 61875 | M14: 48187.5 | O14: TRUE | P14: TRUE | Q14: TRUE | R14: TRUE | S14: TRUE | U14: 27637.5 | V14: 27637.5 | W14: 1243.6875 | X14: 28881.1875
A15: 27 | C15: 151350 | D15: 109237.5 | E15: 84525 | F15: 73362.5 | G15: 56962.5 | I15: 131000 | J15: 94687.5 | K15: 73400 | L15: 63762.5 | M15: 49650 | O15: TRUE | P15: TRUE | Q15: TRUE | R15: TRUE | S15: TRUE | U15: 28481.25 | V15: 28481.25 | W15: 1281.65625 | X15: 29762.90625
A16: 28 | C16: 156000 | D16: 112525 | E16: 87112.5 | F16: 75575 | G16: 58700 | I16: 135000 | J16: 97525 | K16: 75625 | L16: 65675 | M16: 51137.5 | O16: TRUE | P16: TRUE | Q16: TRUE | R16: TRUE | S16: TRUE | U16: 29350 | V16: 29350 | W16: 1320.75 | X16: 30670.75
A17: 29 | C17: 161875 | D17: 116762.5 | E17: 90375 | F17: 78412.5 | G17: 60887.5 | I17: 140075 | J17: 101187.5 | K17: 78437.5 | L17: 68125 | M17: 53025 | O17: TRUE | P17: TRUE | Q17: TRUE | R17: TRUE | S17: TRUE | U17: 30443.75 | V17: 30443.75 | W17: 1369.96875 | X17: 31813.71875
A18: 30 | C18: 168000 | D18: 121200 | E18: 93737.5 | F18: 81337.5 | G18: 63175 | I18: 145362.5 | J18: 105012.5 | K18: 81337.5 | L18: 70662.5 | M18: 55000 | O18: TRUE | P18: TRUE | Q18: TRUE | R18: TRUE | S18: TRUE | U18: 31587.5 | V18: 31587.5 | W18: 1421.4375 | X18: 33008.9375
A19: 31 | C19: 174087.5 | D19: 125600 | E19: 97175 | F19: 84287.5 | G19: 65475 | I19: 150587.5 | J19: 108800 | K19: 84300 | L19: 73200 | M19: 56975 | O19: TRUE | P19: TRUE | Q19: TRUE | R19: TRUE | S19: TRUE | U19: 32737.5 | V19: 32737.5 | W19: 1473.1875 | X19: 34210.6875
A20: 32 | C20: 180312.5 | D20: 130050 | E20: 100612.5 | F20: 87312.5 | G20: 67787.5 | I20: 155975 | J20: 112637.5 | K20: 87262.5 | L20: 75800 | M20: 58975 | O20: TRUE | P20: TRUE | Q20: TRUE | R20: TRUE | S20: TRUE | U20: 33893.75 | V20: 33893.75 | W20: 1525.21875 | X20: 35418.96875
A21: 33 | C21: 184025 | D21: 132737.5 | E21: 102662.5 | F21: 89075 | G21: 69150 | I21: 159162.5 | J21: 114950 | K21: 89037.5 | L21: 77312.5 | M21: 60150 | O21: TRUE | P21: TRUE | Q21: TRUE | R21: TRUE | S21: TRUE | U21: 34575 | V21: 34575 | W21: 1555.875 | X21: 36130.875
A22: 34 | C22: 187962.5 | D22: 135575 | E22: 104850 | F22: 90962.5 | G22: 70625 | I22: 162550 | J22: 117387.5 | K22: 90900 | L22: 78950 | M22: 61412.5 | O22: TRUE | P22: TRUE | Q22: TRUE | R22: TRUE | S22: TRUE | U22: 35312.5 | V22: 35312.5 | W22: 1589.0625 | X22: 36901.5625
A23: 35 | C23: 191837.5 | D23: 138362.5 | E23: 107025 | F23: 92850 | G23: 72087.5 | I23: 165900 | J23: 119800 | K23: 92787.5 | L23: 80575 | M23: 62675 | O23: TRUE | P23: TRUE | Q23: TRUE | R23: TRUE | S23: TRUE | U23: 36043.75 | V23: 36043.75 | W23: 1621.96875 | X23: 37665.71875
A24: 36 | C24: 195737.5 | D24: 141187.5 | E24: 109175 | F24: 94712.5 | G24: 73537.5 | I24: 169262.5 | J24: 122237.5 | K24: 94650 | L24: 82175 | M24: 63937.5 | O24: TRUE | P24: TRUE | Q24: TRUE | R24: TRUE | S24: TRUE | U24: 36768.75 | V24: 36768.75 | W24: 1654.59375 | X24: 38423.34375
A25: 37 | C25: 199625 | D25: 143975 | E25: 111337.5 | F25: 96575 | G25: 75000 | I25: 172612.5 | J25: 124637.5 | K25: 96512.5 | L25: 83787.5 | M25: 65187.5 | O25: TRUE | P25: TRUE | Q25: TRUE | R25: TRUE | S25: TRUE | U25: 37500 | V25: 37500 | W25: 1687.5 | X25: 39187.5
A26: 38 | C26: 203025 | D26: 146412.5 | E26: 113200 | F26: 98200 | G26: 76250 | I26: 175550 | J26: 126737.5 | K26: 98112.5 | L26: 85187.5 | M26: 66262.5 | O26: TRUE | P26: TRUE | Q26: TRUE | R26: TRUE | S26: TRUE | U26: 38125 | V26: 38125 | W26: 1715.625 | X26: 39840.625
A27: 39 | C27: 206187.5 | D27: 148737.5 | E27: 115000 | F27: 99775 | G27: 77462.5 | I27: 178275 | J27: 128737.5 | K27: 99675 | L27: 86550 | M27: 67312.5 | O27: TRUE | P27: TRUE | Q27: TRUE | R27: TRUE | S27: TRUE | U27: 38731.25 | V27: 38731.25 | W27: 1742.90625 | X27: 40474.15625
A28: 40 | C28: 209550 | D28: 151125 | E28: 116900 | F28: 101400 | G28: 78712.5 | I28: 181162.5 | J28: 130812.5 | K28: 101300 | L28: 87937.5 | M28: 68387.5 | O28: TRUE | P28: TRUE | Q28: TRUE | R28: TRUE | S28: TRUE | U28: 39356.25 | V28: 39356.25 | W28: 1771.03125 | X28: 41127.28125
A29: 41 | C29: 212862.5 | D29: 153475 | E29: 118700 | F29: 102950 | G29: 79912.5 | I29: 184012.5 | J29: 132825 | K29: 102850 | L29: 89287.5 | M29: 69425 | O29: TRUE | P29: TRUE | Q29: TRUE | R29: TRUE | S29: TRUE | U29: 39956.25 | V29: 39956.25 | W29: 1798.03125 | X29: 41754.28125
A30: 42 | C30: 216175 | D30: 155925 | E30: 120575 | F30: 104587.5 | G30: 81200 | I30: 186887.5 | J30: 134937.5 | K30: 104475 | L30: 90687.5 | M30: 70537.5 | O30: TRUE | P30: TRUE | Q30: TRUE | R30: TRUE | S30: TRUE | U30: 40600 | V30: 40600 | W30: 1827 | X30: 42427
A31: 43 | C31: 220112.5 | D31: 158725 | E31: 122762.5 | F31: 106487.5 | G31: 82687.5 | I31: 190275 | J31: 137350 | K31: 106350 | L31: 92325 | M31: 71812.5 | O31: TRUE | P31: TRUE | Q31: TRUE | R31: TRUE | S31: TRUE | U31: 41343.75 | V31: 41343.75 | W31: 1860.46875 | X31: 43204.21875
A32: 44 | C32: 224200 | D32: 161662.5 | E32: 125000 | F32: 108425 | G32: 84175 | I32: 193787.5 | J32: 139900 | K32: 108287.5 | L32: 94000 | M32: 73100 | O32: TRUE | P32: TRUE | Q32: TRUE | R32: TRUE | S32: TRUE | U32: 42087.5 | V32: 42087.5 | W32: 1893.9375 | X32: 43981.4375
A33: 45 | C33: 228137.5 | D33: 164500 | E33: 127225 | F33: 110350 | G33: 85662.5 | I33: 197187.5 | J33: 142337.5 | K33: 110200 | L33: 95662.5 | M33: 74375 | O33: TRUE | P33: TRUE | Q33: TRUE | R33: TRUE | S33: TRUE | U33: 42831.25 | V33: 42831.25 | W33: 1927.40625 | X33: 44758.65625
A34: 46 | C34: 232150 | D34: 167400 | E34: 129400 | F34: 112275 | G34: 87150 | I34: 200650 | J34: 144837.5 | K34: 112087.5 | L34: 97312.5 | M34: 75662.5 | O34: TRUE | P34: TRUE | Q34: TRUE | R34: TRUE | S34: TRUE | U34: 43575 | V34: 43575 | W34: 1960.875 | X34: 45535.875
A35: 47 | C35: 236087.5 | D35: 170200 | E35: 131625 | F35: 114175 | G35: 88625 | I35: 204037.5 | J35: 147250 | K35: 113987.5 | L35: 98950 | M35: 76925 | O35: TRUE | P35: TRUE | Q35: TRUE | R35: TRUE | S35: TRUE | U35: 44312.5 | V35: 44312.5 | W35: 1994.0625 | X35: 46306.5625
A36: 48 | C36: 241612.5 | D36: 174212.5 | E36: 135275 | F36: 117350 | G36: 91075 | I36: 208800 | J36: 150700 | K36: 117137.5 | L36: 101687.5 | M36: 79050 | O36: TRUE | P36: TRUE | Q36: TRUE | R36: TRUE | S36: TRUE | U36: 45537.5 | V36: 45537.5 | W36: 2049.1875 | X36: 47586.6875
A37: 49 | C37: 247137.5 | D37: 178175 | E37: 138912.5 | F37: 120500 | G37: 93512.5 | I37: 213575 | J37: 154125 | K37: 120275 | L37: 104412.5 | M37: 81150 | O37: TRUE | P37: TRUE | Q37: TRUE | R37: TRUE | S37: TRUE | U37: 46756.25 | V37: 46756.25 | W37: 2104.03125 | X37: 48860.28125
A38: 50 | C38: 253975 | D38: 183100 | E38: 142725 | F38: 123812.5 | G38: 96087.5 | I38: 219462.5 | J38: 158362.5 | K38: 123562.5 | L38: 107262.5 | M38: 83362.5 | O38: TRUE | P38: TRUE | Q38: TRUE | R38: TRUE | S38: TRUE | U38: 48043.75 | V38: 48043.75 | W38: 2161.96875 | X38: 50205.71875
A39: 51 | C39: 260475 | D39: 187737.5 | E39: 146387.5 | F39: 126987.5 | G39: 98587.5 | I39: 225062.5 | J39: 162362.5 | K39: 126725 | L39: 110000 | M39: 85512.5 | O39: TRUE | P39: TRUE | Q39: TRUE | R39: TRUE | S39: TRUE | U39: 49293.75 | V39: 49293.75 | W39: 2218.21875 | X39: 51511.96875
A40: 52 | C40: 267000 | D40: 192475 | E40: 150087.5 | F40: 130162.5 | G40: 101050 | I40: 230700 | J40: 166450 | K40: 129912.5 | L40: 112737.5 | M40: 87637.5 | O40: TRUE | P40: TRUE | Q40: TRUE | R40: TRUE | S40: TRUE | U40: 50525 | V40: 50525 | W40: 2273.625 | X40: 52798.625
A41: 53 | C41: 279137.5 | D41: 201225 | E41: 156812.5 | F41: 136025 | G41: 105587.5 | I41: 241150 | J41: 173987.5 | K41: 135712.5 | L41: 117787.5 | M41: 91562.5 | O41: TRUE | P41: TRUE | Q41: TRUE | R41: TRUE | S41: TRUE | U41: 52793.75 | V41: 52793.75 | W41: 2375.71875 | X41: 55169.46875
A42: 54 | C42: 291112.5 | D42: 209825 | E42: 163512.5 | F42: 141837.5 | G42: 110112.5 | I42: 251462.5 | J42: 181412.5 | K42: 141487.5 | L42: 122800 | M42: 95450 | O42: TRUE | P42: TRUE | Q42: TRUE | R42: TRUE | S42: TRUE | U42: 55056.25 | V42: 55056.25 | W42: 2477.53125 | X42: 57533.78125
A43: 55 | C43: 303300 | D43: 218600 | E43: 170362.5 | F43: 147800 | G43: 114675 | I43: 261975 | J43: 188975 | K43: 147387.5 | L43: 127937.5 | M43: 99387.5 | O43: TRUE | P43: TRUE | Q43: TRUE | R43: TRUE | S43: TRUE | U43: 57337.5 | V43: 57337.5 | W43: 2580.1875 | X43: 59917.6875
A44: 56 | C44: 315400 | D44: 227325 | E44: 177162.5 | F44: 153650 | G44: 119275 | I44: 272400 | J44: 196487.5 | K44: 153250 | L44: 132987.5 | M44: 103350 | O44: TRUE | P44: TRUE | Q44: TRUE | R44: TRUE | S44: TRUE | U44: 59637.5 | V44: 59637.5 | W44: 2683.6875 | X44: 62321.1875
A45: 57 | C45: 327575 | D45: 236100 | E45: 183975 | F45: 159575 | G45: 123850 | I45: 282900 | J45: 204050 | K45: 159125 | L45: 138087.5 | M45: 107287.5 | O45: TRUE | P45: TRUE | Q45: TRUE | R45: TRUE | S45: TRUE | U45: 61925 | V45: 61925 | W45: 2786.625 | X45: 64711.625
A46: 58 | C46: 348362.5 | D46: 251050 | E46: 195625 | F46: 169700 | G46: 131662.5 | I46: 300812.5 | J46: 216937.5 | K46: 169162.5 | L46: 146800 | M46: 114025 | O46: TRUE | P46: TRUE | Q46: TRUE | R46: TRUE | S46: TRUE | U46: 65831.25 | V46: 65831.25 | W46: 2962.40625 | X46: 68793.65625
A47: 59 | C47: 369112.5 | D47: 266012.5 | E47: 207250 | F47: 179750 | G47: 139475 | I47: 318700 | J47: 229837.5 | K47: 179175 | L47: 155487.5 | M47: 120775 | O47: TRUE | P47: TRUE | Q47: TRUE | R47: TRUE | S47: TRUE | U47: 69737.5 | V47: 69737.5 | W47: 3138.1875 | X47: 72875.6875
A48: 60 | C48: 390062.5 | D48: 281087.5 | E48: 219000 | F48: 189950 | G48: 147375 | I48: 336762.5 | J48: 242825 | K48: 189312.5 | L48: 164275 | M48: 127575 | O48: TRUE | P48: TRUE | Q48: TRUE | R48: TRUE | S48: TRUE | U48: 73687.5 | V48: 73687.5 | W48: 3315.9375 | X48: 77003.4375
A49: 61 | C49: 410750 | D49: 295950 | E49: 230562.5 | F49: 199975 | G49: 155162.5 | I49: 354600 | J49: 255637.5 | K49: 199287.5 | L49: 172912.5 | M49: 134287.5 | O49: TRUE | P49: TRUE | Q49: TRUE | R49: TRUE | S49: TRUE | U49: 77581.25 | V49: 77581.25 | W49: 3491.15625 | X49: 81072.40625
A50: 62 | C50: 431700 | D50: 311062.5 | E50: 242350 | F50: 210187.5 | G50: 163112.5 | I50: 372650 | J50: 268662.5 | K50: 209425 | L50: 181700 | M50: 141125 | O50: TRUE | P50: TRUE | Q50: TRUE | R50: TRUE | S50: TRUE | U50: 81556.25 | V50: 81556.25 | W50: 3670.03125 | X50: 85226.28125
A51: 63 | C51: 463925 | D51: 334262.5 | E51: 260425 | F51: 225850 | G51: 175237.5 | I51: 400437.5 | J51: 288662.5 | K51: 225025 | L51: 195225 | M51: 151587.5 | O51: TRUE | P51: TRUE | Q51: TRUE | R51: TRUE | S51: TRUE | U51: 87618.75 | V51: 87618.75 | W51: 3942.84375 | X51: 91561.59375
A52: 64 | C52: 496187.5 | D52: 357512.5 | E52: 278525 | F52: 241537.5 | G52: 187412.5 | I52: 428237.5 | J52: 308712.5 | K52: 240625 | L52: 208750 | M52: 162087.5 | O52: TRUE | P52: TRUE | Q52: TRUE | R52: TRUE | S52: TRUE | U52: 93706.25 | V52: 93706.25 | W52: 4216.78125 | X52: 97923.03125
A53: 65 | C53: 528537.5 | D53: 380762.5 | E53: 296600 | F53: 257262.5 | G53: 199587.5 | I53: 456125 | J53: 328750 | K53: 256200 | L53: 222287.5 | M53: 172587.5 | O53: TRUE | P53: TRUE | Q53: TRUE | R53: TRUE | S53: TRUE | U53: 99793.75 | V53: 99793.75 | W53: 4490.71875 | X53: 104284.4688
A54: 66 | C54: 560737.5 | D54: 403975 | E54: 314687.5 | F54: 272912.5 | G54: 211750 | I54: 483887.5 | J54: 348750 | K54: 271800 | L54: 235787.5 | M54: 183050 | O54: TRUE | P54: TRUE | Q54: TRUE | R54: TRUE | S54: TRUE | U54: 105875 | V54: 105875 | W54: 4764.375 | X54: 110639.375
A55: 67 | C55: 593175 | D55: 427325 | E55: 332837.5 | F55: 288662.5 | G55: 223950 | I55: 511837.5 | J55: 368875 | K55: 287450 | L55: 249350 | M55: 193575 | O55: TRUE | P55: TRUE | Q55: TRUE | R55: TRUE | S55: TRUE | U55: 111975 | V55: 111975 | W55: 5038.875 | X55: 117013.875
A56: 68 | C56: 637812.5 | D56: 459487.5 | E56: 357850 | F56: 310312.5 | G56: 240750 | I56: 550312.5 | J56: 396600 | K56: 309000 | L56: 268025 | M56: 208062.5 | O56: TRUE | P56: TRUE | Q56: TRUE | R56: TRUE | S56: TRUE | U56: 120375 | V56: 120375 | W56: 5416.875 | X56: 125791.875
A57: 69 | C57: 682612.5 | D57: 491712.5 | E57: 382962.5 | F57: 332112.5 | G57: 257625 | I57: 588925 | J57: 424387.5 | K57: 330650 | L57: 286812.5 | M57: 222612.5 | O57: TRUE | P57: TRUE | Q57: TRUE | R57: TRUE | S57: TRUE | U57: 128812.5 | V57: 128812.5 | W57: 5796.5625 | X57: 134609.0625
A58: 70 | C58: 727462.5 | D58: 524025 | E58: 408112.5 | F58: 353900 | G58: 274562.5 | I58: 627587.5 | J58: 452237.5 | K58: 352325 | L58: 305587.5 | M58: 237212.5 | O58: TRUE | P58: TRUE | Q58: TRUE | R58: TRUE | S58: TRUE | U58: 137281.25 | V58: 137281.25 | W58: 6177.65625 | X58: 143458.9062
A59: 71 | C59: 772387.5 | D59: 556350 | E59: 433312.5 | F59: 375762.5 | G59: 291512.5 | I59: 666325 | J59: 480100 | K59: 374050 | L59: 324437.5 | M59: 251800 | O59: TRUE | P59: TRUE | Q59: TRUE | R59: TRUE | S59: TRUE | U59: 145756.25 | V59: 145756.25 | W59: 6559.03125 | X59: 152315.2812
A60: 72 | C60: 817225 | D60: 588625 | E60: 458437.5 | F60: 397537.5 | G60: 308400 | I60: 704950 | J60: 507912.5 | K60: 395700 | L60: 343200 | M60: 266362.5 | O60: TRUE | P60: TRUE | Q60: TRUE | R60: TRUE | S60: TRUE | U60: 154200 | V60: 154200 | W60: 6939 | X60: 161139
A61: 73 | C61: 870437.5 | D61: 626950 | E61: 488212.5 | F61: 423362.5 | G61: 328425 | I61: 750825 | J61: 540950 | K61: 421375 | L61: 365475 | M61: 283625 | O61: TRUE | P61: TRUE | Q61: TRUE | R61: TRUE | S61: TRUE | U61: 164212.5 | V61: 164212.5 | W61: 7389.5625 | X61: 171602.0625
A62: 74 | C62: 923625 | D62: 665275 | E62: 518062.5 | F62: 449262.5 | G62: 348500 | I62: 796675 | J62: 573987.5 | K62: 447100 | L62: 387787.5 | M62: 300937.5 | O62: TRUE | P62: TRUE | Q62: TRUE | R62: TRUE | S62: TRUE | U62: 174250 | V62: 174250 | W62: 7841.25 | X62: 182091.25
A63: 75 | C63: 976787.5 | D63: 703562.5 | E63: 547862.5 | F63: 475100 | G63: 368537.5 | I63: 842500 | J63: 606987.5 | K63: 472775 | L63: 410050 | M63: 318200 | O63: TRUE | P63: TRUE | Q63: TRUE | R63: TRUE | S63: TRUE | U63: 184268.75 | V63: 184268.75 | W63: 8292.09375 | X63: 192560.8438
A64: 76 | C64: 1030037.5 | D64: 741862.5 | E64: 577712.5 | F64: 500987.5 | G64: 388637.5 | I64: 888400 | J64: 640000 | K64: 498512.5 | L64: 432375 | M64: 335525 | O64: TRUE | P64: TRUE | Q64: TRUE | R64: TRUE | S64: TRUE | U64: 194318.75 | V64: 194318.75 | W64: 8744.34375 | X64: 203063.0938
A65: 77 | C65: 1083212.5 | D65: 780150 | E65: 607512.5 | F65: 526787.5 | G65: 408625 | I65: 934237.5 | J65: 673000 | K65: 524187.5 | L65: 454612.5 | M65: 352762.5 | O65: TRUE | P65: TRUE | Q65: TRUE | R65: TRUE | S65: TRUE | U65: 204312.5 | V65: 204312.5 | W65: 9194.0625 | X65: 213506.5625
A66: 78 | C66: 1137500 | D66: 819237.5 | E66: 637912.5 | F66: 553162.5 | G66: 429112.5 | I66: 981025 | J66: 706700 | K66: 550400 | L66: 477362.5 | M66: 370412.5 | O66: TRUE | P66: TRUE | Q66: TRUE | R66: TRUE | S66: TRUE | U66: 214556.25 | V66: 214556.25 | W66: 9655.03125 | X66: 224211.2812
A67: 79 | C67: 1192025 | D67: 858487.5 | E67: 668475 | F67: 579675 | G67: 449650 | I67: 1028037.5 | J67: 740525 | K67: 576737.5 | L67: 500200 | M67: 388125 | O67: TRUE | P67: TRUE | Q67: TRUE | R67: TRUE | S67: TRUE | U67: 224825 | V67: 224825 | W67: 10117.125 | X67: 234942.125
A68: 80 | C68: 1246612.5 | D68: 897812.5 | E68: 699100 | F68: 606250 | G68: 470237.5 | I68: 1075075 | J68: 774425 | K68: 603150 | L68: 523112.5 | M68: 405862.5 | O68: TRUE | P68: TRUE | Q68: TRUE | R68: TRUE | S68: TRUE | U68: 235118.75 | V68: 235118.75 | W68: 10580.34375 | X68: 245699.0938
A69: 81 | C69: 1300925 | D69: 936900 | E69: 729550 | F69: 632662.5 | G69: 490725 | I69: 1121900 | J69: 808125 | K69: 629387.5 | L69: 545875 | M69: 423537.5 | O69: TRUE | P69: TRUE | Q69: TRUE | R69: TRUE | S69: TRUE | U69: 245362.5 | V69: 245362.5 | W69: 11041.3125 | X69: 256403.8125
A70: 82 | C70: 1355437.5 | D70: 976162.5 | E70: 760112.5 | F70: 659150 | G70: 511262.5 | I70: 1168887.5 | J70: 841962.5 | K70: 655737.5 | L70: 568712.5 | M70: 441237.5 | O70: TRUE | P70: TRUE | Q70: TRUE | R70: TRUE | S70: TRUE | U70: 255631.25 | V70: 255631.25 | W70: 11503.40625 | X70: 267134.6562
A71: 83 | C71: 1410000 | D71: 1015450 | E71: 790700 | F71: 685662.5 | G71: 531837.5 | I71: 1215912.5 | J71: 875825 | K71: 682100 | L71: 591550 | M71: 458975 | O71: TRUE | P71: TRUE | Q71: TRUE | R71: TRUE | S71: TRUE | U71: 265918.75 | V71: 265918.75 | W71: 11966.34375 | X71: 277885.0938
A72: 84 | B72: o más | C72: 1464412.5 | D72: 1054625 | E72: 821150 | F72: 712062.5 | G72: 552337.5 | I72: 1262825 | J72: 909600 | K72: 708350 | L72: 614325 | M72: 476637.5 | O72: TRUE | P72: TRUE | Q72: TRUE | R72: TRUE | S72: TRUE | U72: 276168.75 | V72: 276168.75 | W72: 12427.59375 | X72: 288596.3438
A73: 1 | B73: Hijo | C73: 45862.5 | D73: 33050 | E73: 27087.5 | F73: 23475 | G73: 18200 | I73: 39537.5 | J73: 28475 | K73: 23362.5 | L73: 20237.5 | M73: 15700 | O73: TRUE | P73: TRUE | Q73: TRUE | R73: TRUE | S73: TRUE | U73: 9100 | V73: 9100 | W73: 409.5 | X73: 9509.5
A74: 2 | B74: Hijos | C74: 72262.5 | D74: 52050 | E74: 42637.5 | F74: 36975 | G74: 28662.5 | I74: 62287.5 | J74: 44862.5 | K74: 36750 | L74: 31875 | M74: 24712.5 | O74: TRUE | P74: TRUE | Q74: TRUE | R74: TRUE | S74: TRUE | U74: 14331.25 | V74: 14331.25 | W74: 644.90625 | X74: 14976.15625
A75: 3 | B75: Hijos o más | C75: 105412.5 | D75: 75887.5 | E75: 62187.5 | F75: 53925 | G75: 41837.5 | I75: 90862.5 | J75: 65412.5 | K75: 53612.5 | L75: 46487.5 | M75: 36062.5 | O75: TRUE | P75: TRUE | Q75: TRUE | R75: TRUE | S75: TRUE | U75: 20918.75 | V75: 20918.75 | W75: 941.34375 | X75: 21860.09375
A77: BUPA GLOBAL ELITE - MENSUALES
A78: EDAD
C79: 1000 | D79: 2000 | E79: 3500
A80: 18 | C80: 10338.03125 | D80: 7479.78125 | E80: 5804.375 | F80: 5047.03125 | G80: 3933.5625 | O80: FALSE | P80: FALSE | Q80: FALSE | R80: FALSE | S80: FALSE
A81: 19 | C81: 10736.9375 | D81: 7770 | E81: 6028.6875 | F81: 5237.8125 | G81: 4085.03125 | O81: FALSE | P81: FALSE | Q81: FALSE | R81: FALSE | S81: FALSE
A82: 20 | C82: 11164.75 | D82: 8077.5625 | E82: 6270.34375 | F82: 5448.25 | G82: 4246.90625 | O82: FALSE | P82: FALSE | Q82: FALSE | R82: FALSE | S82: FALSE
A83: 21 | C83: 11584.46875 | D83: 8380.5 | E83: 6498.125 | F83: 5645.96875 | G83: 4400.6875 | O83: FALSE | P83: FALSE | Q83: FALSE | R83: FALSE | S83: FALSE
A84: 22 | C84: 11982.21875 | D84: 8664.9375 | E84: 6718.96875 | F84: 5840.21875 | G84: 4549.84375 | O84: FALSE | P84: FALSE | Q84: FALSE | R84: FALSE | S84: FALSE
A85: 23 | C85: 12405.40625 | D85: 8972.5 | E85: 6957.15625 | F85: 6043.71875 | G85: 4708.25 | O85: FALSE | P85: FALSE | Q85: FALSE | R85: FALSE | S85: FALSE
A86: 24 | C86: 12821.65625 | D86: 9269.65625 | E86: 7186.09375 | F86: 6244.90625 | G86: 4860.875 | O86: FALSE | P86: FALSE | Q86: FALSE | R86: FALSE | S86: FALSE
A87: 25 | C87: 13219.40625 | D87: 9554.09375 | E87: 7406.9375 | F87: 6436.84375 | G87: 5011.1875 | O87: FALSE | P87: FALSE | Q87: FALSE | R87: FALSE | S87: FALSE
A88: 26 | C88: 13639.125 | D88: 9860.5 | E88: 7642.8125 | F88: 6640.34375 | G88: 5170.75 | O88: FALSE | P88: FALSE | Q88: FALSE | R88: FALSE | S88: FALSE
A89: 27 | C89: 14057.6875 | D89: 10162.28125 | E89: 7876.375 | F89: 6843.84375 | G89: 5326.84375 | O89: FALSE | P89: FALSE | Q89: FALSE | R89: FALSE | S89: FALSE
A90: 28 | C90: 14487.8125 | D90: 10466.375 | E90: 8115.71875 | F90: 7048.5 | G90: 5487.5625 | O90: FALSE | P90: FALSE | Q90: FALSE | R90: FALSE | S90: FALSE
A91: 29 | C91: 15031.25 | D91: 10858.34375 | E91: 8417.5 | F91: 7310.96875 | G91: 5689.90625 | O91: FALSE | P91: FALSE | Q91: FALSE | R91: FALSE | S91: FALSE
A92: 30 | C92: 15597.8125 | D92: 11268.8125 | E92: 8728.53125 | F92: 7581.53125 | G92: 5901.5 | O92: FALSE | P92: FALSE | Q92: FALSE | R92: FALSE | S92: FALSE
A93: 31 | C93: 16160.90625 | D93: 11675.8125 | E93: 9046.5 | F93: 7854.40625 | G93: 6114.25 | O93: FALSE | P93: FALSE | Q93: FALSE | R93: FALSE | S93: FALSE
A94: 32 | C94: 16736.71875 | D94: 12087.4375 | E94: 9364.46875 | F94: 8134.21875 | G94: 6328.15625 | O94: FALSE | P94: FALSE | Q94: FALSE | R94: FALSE | S94: FALSE
A95: 33 | C95: 17080.125 | D95: 12336.03125 | E95: 9554.09375 | F95: 8297.25 | G95: 6454.1875 | O95: FALSE | P95: FALSE | Q95: FALSE | R95: FALSE | S95: FALSE
A96: 34 | C96: 17444.34375 | D96: 12598.5 | E96: 9756.4375 | F96: 8471.84375 | G96: 6590.625 | O96: FALSE | P96: FALSE | Q96: FALSE | R96: FALSE | S96: FALSE
A97: 35 | C97: 17802.78125 | D97: 12856.34375 | E97: 9957.625 | F97: 8646.4375 | G97: 6725.90625 | O97: FALSE | P97: FALSE | Q97: FALSE | R97: FALSE | S97: FALSE
A98: 36 | C98: 18163.53125 | D98: 13117.65625 | E98: 10156.5 | F98: 8818.71875 | G98: 6860.03125 | O98: FALSE | P98: FALSE | Q98: FALSE | R98: FALSE | S98: FALSE
A99: 37 | C99: 18523.125 | D99: 13375.5 | E99: 10356.53125 | F99: 8991 | G99: 6995.3125 | O99: FALSE | P99: FALSE | Q99: FALSE | R99: FALSE | S99: FALSE
A100: 38 | C100: 18837.625 | D100: 13600.96875 | E100: 10528.8125 | F100: 9141.3125 | G100: 7110.9375 | O100: FALSE | P100: FALSE | Q100: FALSE | R100: FALSE | S100: FALSE
A101: 39 | C101: 19130.15625 | D101: 13816.03125 | E101: 10695.3125 | F101: 9287 | G101: 7223.09375 | O101: FALSE | P101: FALSE | Q101: FALSE | R101: FALSE | S101: FALSE
A102: 40 | C102: 19441.1875 | D102: 14036.875 | E102: 10871.0625 | F102: 9437.3125 | G102: 7338.71875 | O102: FALSE | P102: FALSE | Q102: FALSE | R102: FALSE | S102: FALSE
A103: 41 | C103: 19747.59375 | D103: 14254.25 | E103: 11037.5625 | F103: 9580.6875 | G103: 7449.71875 | O103: FALSE | P103: FALSE | Q103: FALSE | R103: FALSE | S103: FALSE
A104: 42 | C104: 20054 | D104: 14480.875 | E104: 11211 | F104: 9732.15625 | G104: 7568.8125 | O104: FALSE | P104: FALSE | Q104: FALSE | R104: FALSE | S104: FALSE
A105: 43 | C105: 20418.21875 | D105: 14739.875 | E105: 11413.34375 | F105: 9907.90625 | G105: 7706.40625 | O105: FALSE | P105: FALSE | Q105: FALSE | R105: FALSE | S105: FALSE
A106: 44 | C106: 20796.3125 | D106: 15011.59375 | E106: 11620.3125 | F106: 10087.125 | G106: 7844 | O106: FALSE | P106: FALSE | Q106: FALSE | R106: FALSE | S106: FALSE
A107: 45 | C107: 21160.53125 | D107: 15274.0625 | E107: 11826.125 | F107: 10265.1875 | G107: 7981.59375 | O107: FALSE | P107: FALSE | Q107: FALSE | R107: FALSE | S107: FALSE
A108: 46 | C108: 21531.6875 | D108: 15542.3125 | E108: 12027.3125 | F108: 10443.25 | G108: 8119.1875 | O108: FALSE | P108: FALSE | Q108: FALSE | R108: FALSE | S108: FALSE
A109: 47 | C109: 21895.90625 | D109: 15801.3125 | E109: 12233.125 | F109: 10619 | G109: 8255.625 | O109: FALSE | P109: FALSE | Q109: FALSE | R109: FALSE | S109: FALSE
A110: 48 | C110: 22406.96875 | D110: 16172.46875 | E110: 12570.75 | F110: 10912.6875 | G110: 8482.25 | O110: FALSE | P110: FALSE | Q110: FALSE | R110: FALSE | S110: FALSE
A111: 49 | C111: 22918.03125 | D111: 16539 | E111: 12907.21875 | F111: 11204.0625 | G111: 8707.71875 | O111: FALSE | P111: FALSE | Q111: FALSE | R111: FALSE | S111: FALSE
A112: 50 | C112: 23550.5 | D112: 16994.5625 | E112: 13259.875 | F112: 11510.46875 | G112: 8945.90625 | O112: FALSE | P112: FALSE | Q112: FALSE | R112: FALSE | S112: FALSE
A113: 51 | C113: 24151.75 | D113: 17423.53125 | E113: 13598.65625 | F113: 11804.15625 | G113: 9177.15625 | O113: FALSE | P113: FALSE | Q113: FALSE | R113: FALSE | S113: FALSE
A114: 52 | C114: 24755.3125 | D114: 17861.75 | E114: 13940.90625 | F114: 12097.84375 | G114: 9404.9375 | O114: FALSE | P114: FALSE | Q114: FALSE | R114: FALSE | S114: FALSE
A115: 53 | C115: 25878.03125 | D115: 18671.125 | E115: 14562.96875 | F115: 12640.125 | G115: 9824.65625 | O115: FALSE | P115: FALSE | Q115: FALSE | R115: FALSE | S115: FALSE
A116: 54 | C116: 26985.71875 | D116: 19466.625 | E116: 15182.71875 | F116: 13177.78125 | G116: 10243.21875 | O116: FALSE | P116: FALSE | Q116: FALSE | R116: FALSE | S116: FALSE
A117: 55 | C117: 28113.0625 | D117: 20278.3125 | E117: 15816.34375 | F117: 13729.3125 | G117: 10665.25 | O117: FALSE | P117: FALSE | Q117: FALSE | R117: FALSE | S117: FALSE
A118: 56 | C118: 29232.3125 | D118: 21085.375 | E118: 16445.34375 | F118: 14270.4375 | G118: 11090.75 | O118: FALSE | P118: FALSE | Q118: FALSE | R118: FALSE | S118: FALSE
A119: 57 | C119: 30358.5 | D119: 21897.0625 | E119: 17075.5 | F119: 14818.5 | G119: 11513.9375 | O119: FALSE | P119: FALSE | Q119: FALSE | R119: FALSE | S119: FALSE
A120: 58 | C120: 32281.34375 | D120: 23279.9375 | E120: 18153.125 | F120: 15755.0625 | G120: 12236.59375 | O120: FALSE | P120: FALSE | Q120: FALSE | R120: FALSE | S120: FALSE
A121: 59 | C121: 34200.71875 | D121: 24663.96875 | E121: 19228.4375 | F121: 16684.6875 | G121: 12959.25 | O121: FALSE | P121: FALSE | Q121: FALSE | R121: FALSE | S121: FALSE
A122: 60 | C122: 36138.59375 | D122: 26058.40625 | E122: 20315.3125 | F122: 17628.1875 | G122: 13690 | O122: FALSE | P122: FALSE | Q122: FALSE | R122: FALSE | S122: FALSE
A123: 61 | C123: 38052.1875 | D123: 27433.1875 | E123: 21384.84375 | F123: 18555.5 | G123: 14410.34375 | O123: FALSE | P123: FALSE | Q123: FALSE | R123: FALSE | S123: FALSE
A124: 62 | C124: 39990.0625 | D124: 28831.09375 | E124: 22475.1875 | F124: 19500.15625 | G124: 15145.71875 | O124: FALSE | P124: FALSE | Q124: FALSE | R124: FALSE | S124: FALSE
A125: 63 | C125: 42970.875 | D125: 30977.09375 | E125: 24147.125 | F125: 20948.9375 | G125: 16267.28125 | O125: FALSE | P125: FALSE | Q125: FALSE | R125: FALSE | S125: FALSE
A126: 64 | C126: 45955.15625 | D126: 33127.71875 | E126: 25821.375 | F126: 22400.03125 | G126: 17393.46875 | O126: FALSE | P126: FALSE | Q126: FALSE | R126: FALSE | S126: FALSE
A127: 65 | C127: 48947.53125 | D127: 35278.34375 | E127: 27493.3125 | F127: 23854.59375 | G127: 18519.65625 | O127: FALSE | P127: FALSE | Q127: FALSE | R127: FALSE | S127: FALSE
A128: 66 | C128: 51926.03125 | D128: 37425.5 | E128: 29166.40625 | F128: 25302.21875 | G128: 19644.6875 | O128: FALSE | P128: FALSE | Q128: FALSE | R128: FALSE | S128: FALSE
A129: 67 | C129: 54926.5 | D129: 39585.375 | E129: 30845.28125 | F129: 26759.09375 | G129: 20773.1875 | O129: FALSE | P129: FALSE | Q129: FALSE | R129: FALSE | S129: FALSE
A130: 68 | C130: 59055.46875 | D130: 42560.40625 | E130: 33158.9375 | F130: 28761.71875 | G130: 22327.1875 | O130: FALSE | P130: FALSE | Q130: FALSE | R130: FALSE | S130: FALSE
A131: 69 | C131: 63199.46875 | D131: 45541.21875 | E131: 35481.84375 | F131: 30778.21875 | G131: 23888.125 | O131: FALSE | P131: FALSE | Q131: FALSE | R131: FALSE | S131: FALSE
A132: 70 | C132: 67348.09375 | D132: 48530.125 | E132: 37808.21875 | F132: 32793.5625 | G132: 25454.84375 | O132: FALSE | P132: FALSE | Q132: FALSE | R132: FALSE | S132: FALSE
A133: 71 | C133: 71503.65625 | D133: 51520.1875 | E133: 40139.21875 | F133: 34815.84375 | G133: 27022.71875 | O133: FALSE | P133: FALSE | Q133: FALSE | R133: FALSE | S133: FALSE
A134: 72 | C134: 75651.125 | D134: 54505.625 | E134: 42463.28125 | F134: 36830.03125 | G134: 28584.8125 | O134: FALSE | P134: FALSE | Q134: FALSE | R134: FALSE | S134: FALSE
A135: 73 | C135: 80573.28125 | D135: 58050.6875 | E135: 45217.46875 | F135: 39218.84375 | G135: 30437.125 | O135: FALSE | P135: FALSE | Q135: FALSE | R135: FALSE | S135: FALSE
A136: 74 | C136: 85493.125 | D136: 61595.75 | E136: 47978.59375 | F136: 41614.59375 | G136: 32294.0625 | O136: FALSE | P136: FALSE | Q136: FALSE | R136: FALSE | S136: FALSE
A137: 75 | C137: 90410.65625 | D137: 65137.34375 | E137: 50735.09375 | F137: 44004.5625 | G137: 34147.53125 | O137: FALSE | P137: FALSE | Q137: FALSE | R137: FALSE | S137: FALSE
A138: 76 | C138: 95336.28125 | D138: 68680.09375 | E138: 53496.21875 | F138: 46399.15625 | G138: 36006.78125 | O138: FALSE | P138: FALSE | Q138: FALSE | R138: FALSE | S138: FALSE
A139: 77 | C139: 100254.9687 | D139: 72221.6875 | E139: 56252.71875 | F139: 48785.65625 | G139: 37855.625 | O139: FALSE | P139: FALSE | Q139: FALSE | R139: FALSE | S139: FALSE
A140: 78 | C140: 105276.5625 | D140: 75837.28125 | E140: 59064.71875 | F140: 51225.34375 | G140: 39750.71875 | O140: FALSE | P140: FALSE | Q140: FALSE | R140: FALSE | S140: FALSE
A141: 79 | C141: 110320.125 | D141: 79467.90625 | E141: 61891.75 | F141: 53677.75 | G141: 41650.4375 | O141: FALSE | P141: FALSE | Q141: FALSE | R141: FALSE | S141: FALSE
A142: 80 | C142: 115369.4688 | D142: 83105.46875 | E142: 64724.5625 | F142: 56135.9375 | G142: 43554.78125 | O142: FALSE | P142: FALSE | Q142: FALSE | R142: FALSE | S142: FALSE
A143: 81 | C143: 120393.375 | D143: 86721.0625 | E143: 67541.1875 | F143: 58579.09375 | G143: 45449.875 | O143: FALSE | P143: FALSE | Q143: FALSE | R143: FALSE | S143: FALSE
A144: 82 | C144: 125435.7812 | D144: 90352.84375 | E144: 70368.21875 | F144: 61029.1875 | G144: 47349.59375 | O144: FALSE | P144: FALSE | Q144: FALSE | R144: FALSE | S144: FALSE
A145: 83 | C145: 130482.8125 | D145: 93986.9375 | E145: 73197.5625 | F145: 63481.59375 | G145: 49252.78125 | O145: FALSE | P145: FALSE | Q145: FALSE | R145: FALSE | S145: FALSE
A146: 84 | B146: o más | C146: 135515.9688 | D146: 97610.625 | E146: 76014.1875 | F146: 65923.59375 | G146: 51149.03125 | O146: FALSE | P146: FALSE | Q146: FALSE | R146: FALSE | S146: FALSE
A147: 1 | B147: Hijo | C147: 4242.28125 | D147: 3057.125 | E147: 2505.59375 | F147: 2171.4375 | G147: 1683.5 | O147: TRUE | P147: TRUE | Q147: TRUE | R147: TRUE | S147: TRUE
A148: 2 | B148: Hijos | C148: 6684.28125 | D148: 4814.625 | E148: 3943.96875 | F148: 3420.1875 | G148: 2651.28125 | O148: TRUE | P148: TRUE | Q148: TRUE | R148: TRUE | S148: TRUE
A149: 3 | B149: Hijos o más | C149: 9750.65625 | D149: 7019.59375 | E149: 5752.34375 | F149: 4988.0625 | G149: 3869.96875 | O149: TRUE | P149: TRUE | Q149: TRUE | R149: TRUE | S149: TRUE
A151: BUPA GLOBAL PREMIER
A152: TARIFAS ANUALES | U152: 1000
A153: EDAD | U153: 4 | V153: 156.25 | W153: 0.075
C154: 1000 | D154: 2000 | E154: 5000 | F154: 10000 | U154: tre | V154: sum usa | W154: recargos | X154: cotizador | Y154: 156.25
A155: 18 | C155: 73387.5 | D155: 53012.5 | E155: 38000 | F155: 28362.5 | I155: 62975 | J155: 45637.5 | K155: 32862.5 | L155: 24662.5 | N155: 59826.25 | O155: TRUE | P155: TRUE | Q155: TRUE | R155: TRUE | S155: TRUE | U155: 18346.875 | V155: 18503.125 | W155: 1387.734375 | X155: 19890.85938
A156: 19 | C156: 76137.5 | D156: 54987.5 | E156: 39400 | F156: 29425 | I156: 65312.5 | J156: 47312.5 | K156: 34050 | L156: 25562.5 | N156: 62046.875 | O156: TRUE | P156: TRUE | Q156: TRUE | R156: TRUE | S156: TRUE | U156: 19034.375 | V156: 19190.625 | W156: 1439.296875 | X156: 20629.92188
A157: 20 | C157: 79137.5 | D157: 57137.5 | E157: 40912.5 | F157: 30550 | I157: 67862.5 | J157: 49150 | K157: 35350 | L157: 26525 | N157: 64469.375 | O157: TRUE | P157: TRUE | Q157: TRUE | R157: TRUE | S157: TRUE | U157: 19784.375 | V157: 19940.625 | W157: 1495.546875 | X157: 21436.17188
A158: 21 | C158: 82150 | D158: 59337.5 | E158: 42487.5 | F158: 31700 | I158: 70437.5 | J158: 51012.5 | K158: 36675 | L158: 27500 | N158: 66915.625 | O158: TRUE | P158: TRUE | Q158: TRUE | R158: TRUE | S158: TRUE | U158: 20537.5 | V158: 20693.75 | W158: 1552.03125 | X158: 22245.78125
A159: 22 | C159: 84962.5 | D159: 61337.5 | E159: 43900 | F159: 32762.5 | I159: 72825 | J159: 52712.5 | K159: 37887.5 | L159: 28412.5 | N159: 69183.75 | O159: TRUE | P159: TRUE | Q159: TRUE | R159: TRUE | S159: TRUE | U159: 21240.625 | V159: 21396.875 | W159: 1604.765625 | X159: 23001.64062
A160: 23 | C160: 88012.5 | D160: 63512.5 | E160: 45475 | F160: 33912.5 | I160: 75412.5 | J160: 54575 | K160: 39225 | L160: 29387.5 | N160: 71641.875 | O160: TRUE | P160: TRUE | Q160: TRUE | R160: TRUE | S160: TRUE | U160: 22003.125 | V160: 22159.375 | W160: 1661.953125 | X160: 23821.32812
A161: 24 | C161: 90925 | D161: 65625 | E161: 46987.5 | F161: 35050 | I161: 77900 | J161: 56375 | K161: 40512.5 | L161: 30350 | N161: 74005 | O161: TRUE | P161: TRUE | Q161: TRUE | R161: TRUE | S161: TRUE | U161: 22731.25 | V161: 22887.5 | W161: 1716.5625 | X161: 24604.0625
A162: 25 | C162: 92787.5 | D162: 66962.5 | E162: 47925 | F162: 35725 | I162: 79475 | J162: 57512.5 | K162: 41300 | L162: 30937.5 | N162: 75501.25 | O162: TRUE | P162: TRUE | Q162: TRUE | R162: TRUE | S162: TRUE | U162: 23196.875 | V162: 23353.125 | W162: 1751.484375 | X162: 25104.60938
A163: 26 | C163: 95737.5 | D163: 69075 | E163: 49462.5 | F163: 36887.5 | I163: 82000 | J163: 59312.5 | K163: 42612.5 | L163: 31912.5 | N163: 77900 | O163: TRUE | P163: TRUE | Q163: TRUE | R163: TRUE | S163: TRUE | U163: 23934.375 | V163: 24090.625 | W163: 1806.796875 | X163: 25897.42188
A164: 27 | C164: 98725 | D164: 71250 | E164: 51000 | F164: 38037.5 | I164: 84537.5 | J164: 61150 | K164: 43912.5 | L164: 32887.5 | N164: 80310.625 | O164: TRUE | P164: TRUE | Q164: TRUE | R164: TRUE | S164: TRUE | U164: 24681.25 | V164: 24837.5 | W164: 1862.8125 | X164: 26700.3125
A165: 28 | C165: 101625 | D165: 73325 | E165: 52475 | F165: 39137.5 | I165: 87000 | J165: 62912.5 | K165: 45175 | L165: 33825 | N165: 82650 | O165: TRUE | P165: TRUE | Q165: TRUE | R165: TRUE | S165: TRUE | U165: 25406.25 | V165: 25562.5 | W165: 1917.1875 | X165: 27479.6875
A166: 29 | C166: 105487.5 | D166: 76112.5 | E166: 54400 | F166: 40550 | I166: 90287.5 | J166: 65287.5 | K166: 46825 | L166: 35037.5 | N166: 85773.125 | O166: TRUE | P166: TRUE | Q166: TRUE | R166: TRUE | S166: TRUE | U166: 26371.875 | V166: 26528.125 | W166: 1989.609375 | X166: 28517.73438
A167: 30 | C167: 109475 | D167: 78962.5 | E167: 56475 | F167: 42125 | I167: 93675 | J167: 67725 | K167: 48587.5 | L167: 36375 | N167: 88991.25 | O167: TRUE | P167: TRUE | Q167: TRUE | R167: TRUE | S167: TRUE | U167: 27368.75 | V167: 27525 | W167: 2064.375 | X167: 29589.375
A168: 31 | C168: 113462.5 | D168: 81837.5 | E168: 58550 | F168: 43637.5 | I168: 97062.5 | J168: 70162.5 | K168: 50337.5 | L168: 37662.5 | N168: 92209.375 | O168: TRUE | P168: TRUE | Q168: TRUE | R168: TRUE | S168: TRUE | U168: 28365.625 | V168: 28521.875 | W168: 2139.140625 | X168: 30661.01562
A169: 32 | C169: 117437.5 | D169: 84687.5 | E169: 60575 | F169: 45137.5 | I169: 100450 | J169: 72587.5 | K169: 52075 | L169: 38937.5 | N169: 95427.5 | O169: TRUE | P169: TRUE | Q169: TRUE | R169: TRUE | S169: TRUE | U169: 29359.375 | V169: 29515.625 | W169: 2213.671875 | X169: 31729.29688
A170: 33 | C170: 119975 | D170: 86500 | E170: 61875 | F170: 46100 | I170: 102612.5 | J170: 74137.5 | K170: 53162.5 | L170: 39750 | N170: 97481.875 | O170: TRUE | P170: TRUE | Q170: TRUE | R170: TRUE | S170: TRUE | U170: 29993.75 | V170: 30150 | W170: 2261.25 | X170: 32411.25
A171: 34 | C171: 122462.5 | D171: 88300 | E171: 63150 | F171: 47062.5 | I171: 104725 | J171: 75662.5 | K171: 54262.5 | L171: 40587.5 | N171: 99488.75 | O171: TRUE | P171: TRUE | Q171: TRUE | R171: TRUE | S171: TRUE | U171: 30615.625 | V171: 30771.875 | W171: 2307.890625 | X171: 33079.76562
A172: 35 | C172: 124975 | D172: 90112.5 | E172: 64387.5 | F172: 48012.5 | I172: 106862.5 | J172: 77200 | K172: 55325 | L172: 41375 | N172: 101519.375 | O172: TRUE | P172: TRUE | Q172: TRUE | R172: TRUE | S172: TRUE | U172: 31243.75 | V172: 31400 | W172: 2355 | X172: 33755
A173: 36 | C173: 127525 | D173: 91962.5 | E173: 65712.5 | F173: 49000 | I173: 109037.5 | J173: 78775 | K173: 56450 | L173: 42212.5 | N173: 103585.625 | O173: TRUE | P173: TRUE | Q173: TRUE | R173: TRUE | S173: TRUE | U173: 31881.25 | V173: 32037.5 | W173: 2402.8125 | X173: 34440.3125
A174: 37 | C174: 129962.5 | D174: 93712.5 | E174: 67000 | F174: 49937.5 | I174: 111112.5 | J174: 80262.5 | K174: 57537.5 | L174: 43025 | N174: 105556.875 | O174: TRUE | P174: TRUE | Q174: TRUE | R174: TRUE | S174: TRUE | U174: 32490.625 | V174: 32646.875 | W174: 2448.515625 | X174: 35095.39062
A175: 38 | C175: 132212.5 | D175: 95312.5 | E175: 68125 | F175: 50762.5 | I175: 113025 | J175: 81625 | K175: 58487.5 | L175: 43712.5 | N175: 107373.75 | O175: TRUE | P175: TRUE | Q175: TRUE | R175: TRUE | S175: TRUE | U175: 33053.125 | V175: 33209.375 | W175: 2490.703125 | X175: 35700.07812
A176: 39 | C176: 135662.5 | D176: 97812.5 | E176: 69900 | F176: 52100 | I176: 115962.5 | J176: 83750 | K176: 60000 | L176: 44850 | N176: 110164.375 | O176: TRUE | P176: TRUE | Q176: TRUE | R176: TRUE | S176: TRUE | U176: 33915.625 | V176: 34071.875 | W176: 2555.390625 | X176: 36627.26562
A177: 40 | C177: 137875 | D177: 99400 | E177: 71062.5 | F177: 52950 | I177: 117850 | J177: 85100 | K177: 61000 | L177: 45587.5 | N177: 111957.5 | O177: TRUE | P177: TRUE | Q177: TRUE | R177: TRUE | S177: TRUE | U177: 34468.75 | V177: 34625 | W177: 2596.875 | X177: 37221.875
A178: 41 | C178: 140037.5 | D178: 100975 | E178: 72162.5 | F178: 53762.5 | I178: 119675 | J178: 86450 | K178: 61937.5 | L178: 46275 | N178: 113691.25 | O178: TRUE | P178: TRUE | Q178: TRUE | R178: TRUE | S178: TRUE | U178: 35009.375 | V178: 35165.625 | W178: 2637.421875 | X178: 37803.04688
A179: 42 | C179: 142262.5 | D179: 102562.5 | E179: 73262.5 | F179: 54600 | I179: 121562.5 | J179: 87787.5 | K179: 62875 | L179: 47000 | N179: 115484.375 | O179: TRUE | P179: TRUE | Q179: TRUE | R179: TRUE | S179: TRUE | U179: 35565.625 | V179: 35721.875 | W179: 2679.140625 | X179: 38401.01562
A180: 43 | C180: 144825 | D180: 104387.5 | E180: 74612.5 | F180: 55587.5 | I180: 123750 | J180: 89350 | K180: 64025 | L180: 47837.5 | N180: 117562.5 | O180: TRUE | P180: TRUE | Q180: TRUE | R180: TRUE | S180: TRUE | U180: 36206.25 | V180: 36362.5 | W180: 2727.1875 | X180: 39089.6875
A181: 44 | C181: 147525 | D181: 106312.5 | E181: 75962.5 | F181: 56587.5 | I181: 126050 | J181: 90987.5 | K181: 65175 | L181: 48687.5 | N181: 119747.5 | O181: TRUE | P181: TRUE | Q181: TRUE | R181: TRUE | S181: TRUE | U181: 36881.25 | V181: 37037.5 | W181: 2777.8125 | X181: 39815.3125
A182: 45 | C182: 150062.5 | D182: 108150 | E182: 77275 | F182: 57562.5 | I182: 128200 | J182: 92550 | K182: 66275 | L182: 49512.5 | N182: 121790 | O182: TRUE | P182: TRUE | Q182: TRUE | R182: TRUE | S182: TRUE | U182: 37515.625 | V182: 37671.875 | W182: 2825.390625 | X182: 40497.26562
A183: 46 | C183: 152775 | D183: 110100 | E183: 78637.5 | F183: 58587.5 | I183: 130512.5 | J183: 94212.5 | K183: 67437.5 | L183: 50387.5 | N183: 123986.875 | O183: TRUE | P183: TRUE | Q183: TRUE | R183: TRUE | S183: TRUE | U183: 38193.75 | V183: 38350 | W183: 2876.25 | X183: 41226.25
A184: 47 | C184: 155287.5 | D184: 111925 | E184: 79937.5 | F184: 59575 | I184: 132662.5 | J184: 95762.5 | K184: 68550 | L184: 51225 | N184: 126029.375 | O184: TRUE | P184: TRUE | Q184: TRUE | R184: TRUE | S184: TRUE | U184: 38821.875 | V184: 38978.125 | W184: 2923.359375 | X184: 41901.48438
A185: 48 | C185: 159000 | D185: 114587.5 | E185: 83000 | F185: 61837.5 | I185: 135825 | J185: 98025 | K185: 71137.5 | L185: 53150 | N185: 129033.75 | O185: TRUE | P185: TRUE | Q185: TRUE | R185: TRUE | S185: TRUE | U185: 39750 | V185: 39906.25 | W185: 2992.96875 | X185: 42899.21875
A186: 49 | C186: 163400 | D186: 117750 | E186: 85287.5 | F186: 63537.5 | I186: 139550 | J186: 100725 | K186: 73100 | L186: 54587.5 | N186: 132572.5 | O186: TRUE | P186: TRUE | Q186: TRUE | R186: TRUE | S186: TRUE | U186: 40850 | V186: 41006.25 | W186: 3075.46875 | X186: 44081.71875
A187: 50 | C187: 167850 | D187: 120962.5 | E187: 87575 | F187: 65237.5 | I187: 143337.5 | J187: 103450 | K187: 75050 | L187: 56037.5 | N187: 136170.625 | O187: TRUE | P187: TRUE | Q187: TRUE | R187: TRUE | S187: TRUE | U187: 41962.5 | V187: 42118.75 | W187: 3158.90625 | X187: 45277.65625
A188: 51 | C188: 172187.5 | D188: 124075 | E188: 89837.5 | F188: 66912.5 | I188: 147037.5 | J188: 106100 | K188: 76975 | L188: 57462.5 | N188: 139685.625 | O188: TRUE | P188: TRUE | Q188: TRUE | R188: TRUE | S188: TRUE | U188: 43046.875 | V188: 43203.125 | W188: 3240.234375 | X188: 46443.35938
A189: 52 | C189: 178237.5 | D189: 128425 | E189: 93000 | F189: 69250 | I189: 152187.5 | J189: 109800 | K189: 79650 | L189: 59450 | N189: 144578.125 | O189: TRUE | P189: TRUE | Q189: TRUE | R189: TRUE | S189: TRUE | U189: 44559.375 | V189: 44715.625 | W189: 3353.671875 | X189: 48069.29688
A190: 53 | C190: 188325 | D190: 135687.5 | E190: 98237.5 | F190: 73162.5 | I190: 160762.5 | J190: 115975 | K190: 84112.5 | L190: 62787.5 | N190: 152724.375 | O190: TRUE | P190: TRUE | Q190: TRUE | R190: TRUE | S190: TRUE | U190: 47081.25 | V190: 47237.5 | W190: 3542.8125 | X190: 50780.3125
A191: 54 | C191: 200300 | D191: 144300 | E191: 104425 | F191: 77800 | I191: 170950 | J191: 123312.5 | K191: 89387.5 | L191: 66725 | N191: 162402.5 | O191: TRUE | P191: TRUE | Q191: TRUE | R191: TRUE | S191: TRUE | U191: 50075 | V191: 50231.25 | W191: 3767.34375 | X191: 53998.59375
A192: 55 | C192: 210775 | D192: 151837.5 | E192: 109900 | F192: 81837.5 | I192: 179862.5 | J192: 129725 | K192: 94025 | L192: 70162.5 | N192: 170869.375 | O192: TRUE | P192: TRUE | Q192: TRUE | R192: TRUE | S192: TRUE | U192: 52693.75 | V192: 52850 | W192: 3963.75 | X192: 56813.75
A193: 56 | C193: 219212.5 | D193: 157937.5 | E193: 114262.5 | F193: 85087.5 | I193: 187037.5 | J193: 134900 | K193: 97750 | L193: 72925 | N193: 177685.625 | O193: TRUE | P193: TRUE | Q193: TRUE | R193: TRUE | S193: TRUE | U193: 54803.125 | V193: 54959.375 | W193: 4121.953125 | X193: 59081.32812
A194: 57 | C194: 229900 | D194: 165600 | E194: 119837.5 | F194: 89237.5 | I194: 196137.5 | J194: 141425 | K194: 102500 | L194: 76450 | N194: 186330.625 | O194: TRUE | P194: TRUE | Q194: TRUE | R194: TRUE | S194: TRUE | U194: 57475 | V194: 57631.25 | W194: 4322.34375 | X194: 61953.59375
A195: 58 | C195: 246750 | D195: 177725 | E195: 128600 | F195: 95762.5 | I195: 210462.5 | J195: 151737.5 | K195: 109950 | L195: 82012.5 | N195: 199939.375 | O195: TRUE | P195: TRUE | Q195: TRUE | R195: TRUE | S195: TRUE | U195: 61687.5 | V195: 61843.75 | W195: 4638.28125 | X195: 66482.03125
A196: 59 | C196: 263987.5 | D196: 190137.5 | E196: 137550 | F196: 102412.5 | I196: 225137.5 | J196: 162312.5 | K196: 117562.5 | L196: 87675 | N196: 213880.625 | O196: TRUE | P196: TRUE | Q196: TRUE | R196: TRUE | S196: TRUE | U196: 65996.875 | V196: 66153.125 | W196: 4961.484375 | X196: 71114.60938
A197: 60 | C197: 281650 | D197: 202812.5 | E197: 146725 | F197: 109250 | I197: 240162.5 | J197: 173087.5 | K197: 125362.5 | L197: 93487.5 | N197: 228154.375 | O197: TRUE | P197: TRUE | Q197: TRUE | R197: TRUE | S197: TRUE | U197: 70412.5 | V197: 70568.75 | W197: 5292.65625 | X197: 75861.40625
A198: 61 | C198: 299437.5 | D198: 215625 | E198: 155962.5 | F198: 116125 | I198: 255300 | J198: 183987.5 | K198: 133225 | L198: 99337.5 | N198: 242535 | O198: TRUE | P198: TRUE | Q198: TRUE | R198: TRUE | S198: TRUE | U198: 74859.375 | V198: 75015.625 | W198: 5626.171875 | X198: 80641.79688
A199: 62 | C199: 317675 | D199: 228750 | E199: 165425 | F199: 123162.5 | I199: 270812.5 | J199: 195150 | K199: 141287.5 | L199: 105325 | N199: 257271.875 | O199: TRUE | P199: TRUE | Q199: TRUE | R199: TRUE | S199: TRUE | U199: 79418.75 | V199: 79575 | W199: 5968.125 | X199: 85543.125
A200: 63 | C200: 344462.5 | D200: 248025 | E200: 179375 | F200: 133512.5 | I200: 293600 | J200: 211550 | K200: 153150 | L200: 114125 | N200: 278920 | O200: TRUE | P200: TRUE | Q200: TRUE | R200: TRUE | S200: TRUE | U200: 86115.625 | V200: 86271.875 | W200: 6470.390625 | X200: 92742.26562
A201: 64 | C201: 375187.5 | D201: 270100 | E201: 195325 | F201: 145387.5 | I201: 319750 | J201: 230337.5 | K201: 166725 | L201: 124237.5 | N201: 303762.5 | O201: TRUE | P201: TRUE | Q201: TRUE | R201: TRUE | S201: TRUE | U201: 93796.875 | V201: 93953.125 | W201: 7046.484375 | X201: 100999.6094
A202: 65 | C202: 399537.5 | D202: 287625 | E202: 207975 | F202: 154787.5 | I202: 340462.5 | J202: 245250 | K202: 177475 | L202: 132237.5 | N202: 323439.375 | O202: TRUE | P202: TRUE | Q202: TRUE | R202: TRUE | S202: TRUE | U202: 99884.375 | V202: 100040.625 | W202: 7503.046875 | X202: 107543.6719
A203: 66 | C203: 423900 | D203: 305162.5 | E203: 220650 | F203: 164225 | I203: 361200 | J203: 260175 | K203: 188262.5 | L203: 140262.5 | N203: 343140 | O203: TRUE | P203: TRUE | Q203: TRUE | R203: TRUE | S203: TRUE | U203: 105975 | V203: 106131.25 | W203: 7959.84375 | X203: 114091.0938
... 1278 more rows

Sheet Global Major Medical Health Pla
M30: FALSE
B31: Nombre del asegurado titular : | C31: =+'INGRESO DE DATOS'!$D$15 -> Nombre del Cliente | K31: Deducibles | M31: PLAN 1 | N31: PLAN 2
K32: Dentro del país de residencia | M32: 10000 | N32: 20000
B33: Agencia / Agente : | C33: =+'INGRESO DE DATOS'!$D$23 -> Nombre del Agente | K33: Fuera del país de residencia | M33: 10000 | N33: 20000
D35: Número de adultos en la póliza : | F35: =+'INGRESO DE DATOS'!$D$17 -> 2 | H35: Edad del asegurado titular : | I35: =+'INGRESO DE DATOS'!$D$19 -> 34 | K35: TARIFAS ANUALES
K36: Prima del asegurado titular : | M36: =VLOOKUP($I$35,Tablas!$A$905:$G$971,3,TRUE)+(625) -> 41362.5 | N36: =VLOOKUP($I$35,Tablas!$A$905:$G$971,4,TRUE)+(625) -> 30200
D37: Número de hijos en la póliza : | F37: =+'INGRESO DE DATOS'!$H$17 -> 0 | H37: Edad del (de la) cónyuge : | I37: =+'INGRESO DE DATOS'!$H$19 -> 35 | K37: Prima del (de la) cónyuge: | M37: =IF($F$35=1,0,(VLOOKUP($I$37,Tablas!$A$905:$G$971,3,TRUE)))+($J$35) -> 41850 | N37: =IF($F$35=1,0,(VLOOKUP($I$37,Tablas!$A$905:$G$971,4,TRUE)))+($J$35) -> 30362.5
K38: Prima del (de los) Hijo (s) : | M38: =IF($F$37=0,0,(VLOOKUP($F$37,Tablas!$A$972:$G$974,3,TRUE))) -> 0 | N38: =IF($F$37=0,0,(VLOOKUP($F$37,Tablas!$A$972:$G$974,4,TRUE))) -> 0
C39: FECHA DE COTIZACION : | E39: =NOW() -> 2021-01-13T13:38:21.570 | K39: TOTAL PRIMA NETA : | M39: =SUM(M36:M38) -> 83212.5 | N39: =SUM(N36:N38) -> 60562.5
K40: Costo administrativo anual : | M40: 937.5 | N40: 937.5
K41: IVA (16%) : | M41: =+M39*16% -> 13314 | N41: =+N39*16% -> 9690
K42: GRAN TOTAL ANUAL : | M42: =SUM(M39:M41) + M40*0.16 -> 97614 | N42: =SUM(N39:N41) + N40*0.16 -> 71340
K44: TARIFAS SEMESTRALES
K45: Prima del asegurado titular : | M45: =VLOOKUP($I$35,Tablas!$A$1129:$G$1195,3,TRUE) -> 21611.90625 | N45: =VLOOKUP($I$35,Tablas!$A$1129:$G$1195,4,TRUE) -> 15779.5
K46: Prima del (de la) cónyuge: | M46: =IF($F$35=1,0,(VLOOKUP($I$37,Tablas!$A$1129:$G$1195,3,TRUE))) -> 22193.1875 | N46: =IF($F$35=1,0,(VLOOKUP($I$37,Tablas!$A$1129:$G$1195,4,TRUE))) -> 16190.96875
K47: Prima del (de los) Hijo (s) : | M47: =IF($F$37=0,0,(VLOOKUP($F$37,Tablas!$A$1196:$G$1198,3,TRUE))) -> 0 | N47: =IF($F$37=0,0,(VLOOKUP($F$37,Tablas!$A$1196:$G$1198,4,TRUE))) -> 0
K48: TOTAL PRIMA NETA : | M48: =SUM(M45:M47) -> 43805.09375 | N48: =SUM(N45:N47) -> 31970.46875
K49: Costo administrativo anual : | M49: 937.5 | N49: 937.5
K50: IVA (16%) : | M50: =SUM(M48:M49)*16% -> 7158.815 | N50: =SUM(N48:N49)*16% -> 5265.275
K51: TOTAL primera cuota : | M51: =SUM(M48:M50) -> 51901.40875 | N51: =SUM(N48:N50) -> 38173.24375
K52: Valor segunda cuota : | M52: =(M48*16%)+M48 -> 50813.90875 | N52: =(N48*16%)+N48 -> 37085.74375
K53: GRAN TOTAL ANUAL : | M53: =M51+M52 -> 102715.3175 | N53: =N51+N52 -> 75258.9875
K55: TARIFAS TRIMESTRALES
K56: Prima del asegurado titular : | M56: =VLOOKUP($I$35,Tablas!$A$1054:$G$1120,3,TRUE) -> 11116.17188 | N56: =VLOOKUP($I$35,Tablas!$A$1054:$G$1120,4,TRUE) -> 8116.25
K57: Prima del (de la) cónyuge: | M57: =IF($F$35=1,0,(VLOOKUP($I$37,Tablas!$A$1054:$G$1120,3,TRUE))) -> 11415.15625 | N57: =IF($F$35=1,0,(VLOOKUP($I$37,Tablas!$A$1054:$G$1120,4,TRUE))) -> 8327.890625
K58: Prima del (de los) Hijo (s) : | M58: =IF($F$37=0,0,(VLOOKUP($F$37,Tablas!$A$1121:$G$1123,3,TRUE))) -> 0 | N58: =IF($F$37=0,0,(VLOOKUP($F$37,Tablas!$A$1121:$G$1123,4,TRUE))) -> 0
K59: TOTAL PRIMA NETA : | M59: =SUM(M56:M58) -> 22531.32812 | N59: =SUM(N56:N58) -> 16444.14062
K60: Costo administrativo anual : | M60: 937.5 | N60: 937.5
K61: IVA (16%) : | M61: =SUM(M59:M60)*16% -> 3755.0125 | N61: =SUM(N59:N60)*16% -> 2781.0625
K62: TOTAL primera cuota : | M62: =SUM(M59:M61) -> 27223.84063 | N62: =SUM(N59:N61) -> 20162.70312
K63: Valor cuota trimestral 2 a 4: | M63: =(M59*16%)+(M59) -> 26136.34063 | N63: =(N59*16%)+(N59) -> 19075.20312
K64: GRAN TOTAL ANUAL : | M64: =M62+(M63*3) -> 105632.8625 | N64: =N62+(N63*3) -> 77388.3125
K66: TARIFAS MENSUALES
K67: Prima del asegurado titular : | M67: =VLOOKUP($I$35,Tablas!$A$979:$G$1045,3,TRUE) -> 3826.03125 | N67: =VLOOKUP($I$35,Tablas!$A$979:$G$1045,4,TRUE) -> 2793.5
K68: Prima del (de la) cónyuge: | M68: =IF($F$35=1,0,(VLOOKUP($I$37,Tablas!$A$979:$G$1045,3,TRUE))) -> 3928.9375 | N68: =IF($F$35=1,0,(VLOOKUP($I$37,Tablas!$A$979:$G$1045,4,TRUE))) -> 2866.34375
K69: Prima del (de los) Hijo (s) : | M69: =IF($F$37=0,0,(VLOOKUP($F$37,Tablas!$A$1046:$G$1048,3,TRUE))) -> 0 | N69: =IF($F$37=0,0,(VLOOKUP($F$37,Tablas!$A$1046:$G$1048,4,TRUE))) -> 0
K70: TOTAL PRIMA NETA : | M70: =SUM(M67:M69) -> 7754.96875 | N70: =SUM(N67:N69) -> 5659.84375
K71: Costo administrativo anual : | M71: 937.5 | N71: 937.5
K72: IVA (16%) : | M72: =SUM(M70:M71)*16% -> 1390.795 | N72: =SUM(N70:N71)*16% -> 1055.575
K73: TOTAL primera cuota : | M73: =SUM(M70:M72) -> 10083.26375 | N73: =SUM(N70:N72) -> 7652.91875
K74: Valor cuota mensual 2 a 12 : | M74: =(M70*16%)+M70 -> 8995.76375 | N74: =(N70*16%)+N70 -> 6565.41875
K75: GRAN TOTAL ANUAL : | M75: =M73+(M74*11) -> 109036.665 | N75: =N73+(N74*11) -> 79872.525
B77: Tarifas en MXN$ - Válidas desde el 01 de enero de 2021
B78: Este presupuesto solamente tiene carácter informativo y en ningún momento expresa compromiso legal para suministrarle cobertura de seguro. La emisión de una póliza de seguro Bupa está sujeta a todas las evaluaciones de riesgo por parte de Bupa y a la recepción de todos los pagos de prima requeridos.

Sheet Global Select Health Plan
M32: FALSE
B33: Nombre del asegurado titular : | C33: =+'INGRESO DE DATOS'!$D$15 -> Nombre del Cliente | K33: Deducibles | M33: PLAN A | N33: PLAN 1 | O33: PLAN 2
K34: Dentro del país de residencia | M34: 2000 | N34: 3500 | O34: 5000
B35: Agencia / Agente : | C35: =+'INGRESO DE DATOS'!$D$23 -> Nombre del Agente | K35: Fuera del país de residencia | M35: 2000 | N35: 3500 | O35: 5000
K37: TARIFAS ANUALES
B38: Número de adultos en la póliza : | C38: =+'INGRESO DE DATOS'!$D$17 -> 2 | F38: Edad del asegurado titular : | G38: =+'INGRESO DE DATOS'!$D$19 -> 34 | H38: =VLOOKUP($C$38,Tablas!A1503:B1504,2,0) -> 625 | K38: Prima del asegurado titular : | M38: =VLOOKUP($G$38,Tablas!$A$305:$G$371,3,TRUE)+(625) -> 62937.5 | N38: =VLOOKUP($G$38,Tablas!$A$305:$G$371,4,TRUE)+(625) -> 52687.5 | O38: =VLOOKUP($G$38,Tablas!$A$305:$G$371,5,TRUE)+(625) -> 46537.5
K39: Prima del (de la) cónyuge: | M39: =IF($C$38=1,0,(VLOOKUP($G$40,Tablas!$A$305:$G$371,3,TRUE)))+($H$38) -> 64512.5 | N39: =IF($C$38=1,0,(VLOOKUP($G$40,Tablas!$A$305:$G$371,4,TRUE)))+($H$38) -> 53987.5 | O39: =IF($C$38=1,0,(VLOOKUP($G$40,Tablas!$A$305:$G$371,5,TRUE)))+($H$38) -> 47762.5
B40: Número de hijos en la póliza : | C40: =+'INGRESO DE DATOS'!$H$17 -> 0 | F40: Edad del (de la) cónyuge : | G40: =+'INGRESO DE DATOS'!$H$19 -> 35 | K40: Prima del (de los) Hijo (s) : | M40: =IF($C$40=0,0,(VLOOKUP($C$40,Tablas!$A$372:$G$374,3,TRUE))) -> 0 | N40: =IF($C$40=0,0,(VLOOKUP($C$40,Tablas!$A$372:$G$374,4,TRUE))) -> 0 | O40: =IF($C$40=0,0,(VLOOKUP($C$40,Tablas!$A$372:$G$374,5,TRUE))) -> 0
K41: TOTAL PRIMA NETA : | M41: =SUM(M38:M40) -> 127450 | N41: =SUM(N38:N40) -> 106675 | O41: 94300
B42: FECHA DE COTIZACION : | C42: =NOW() -> 2021-01-13T13:38:21.570 | K42: Costo administrativo anual : | M42: 937.5 | N42: 937.5 | O42: 937.5
K43: IVA (16%) : | M43: =SUM(M41:M42)*16% -> 20542 | N43: =SUM(N41:N42)*16% -> 17218 | O43: 15238
K44: GRAN TOTAL ANUAL : | M44: =SUM(M41:M43) -> 148929.5 | N44: =SUM(N41:N43) -> 124830.5 | O44: 110475.5
K46: TARIFAS SEMESTRALES
K47: Prima del asegurado titular : | M47: =VLOOKUP($G$38,Tablas!$A$605:$G$671,3,TRUE) -> 32884.84375 | N47: =VLOOKUP($G$38,Tablas!$A$605:$G$671,4,TRUE) -> 27529.21875 | O47: =VLOOKUP($G$38,Tablas!$A$605:$G$671,5,TRUE) -> 24315.84375
K48: Prima del (de la) cónyuge: | M48: =IF($C$38=1,0,(VLOOKUP($G$40,Tablas!$A$605:$G$671,3,TRUE))) -> 33707.78125 | N48: =IF($C$38=1,0,(VLOOKUP($G$40,Tablas!$A$605:$G$671,4,TRUE))) -> 28208.46875 | O48: =IF($C$38=1,0,(VLOOKUP($G$40,Tablas!$A$605:$G$671,5,TRUE))) -> 24955.90625
K49: Prima del (de los) Hijo (s) : | M49: =IF($C$40=0,0,(VLOOKUP($C$40,Tablas!$A$672:$G$674,3,TRUE))) -> 0 | N49: =IF($C$40=0,0,(VLOOKUP($C$40,Tablas!$A$672:$G$674,4,TRUE))) -> 0 | O49: =IF($C$40=0,0,(VLOOKUP($C$40,Tablas!$A$672:$G$674,5,TRUE))) -> 0
K50: TOTAL PRIMA NETA : | M50: =SUM(M47:M49) -> 66592.625 | N50: =SUM(N47:N49) -> 55737.6875 | O50: 49271.75
K51: Costo administrativo anual : | M51: 937.5 | N51: 937.5 | O51: 937.5
K52: IVA (16%) : | M52: =SUM(M50:M51)*16% -> 10804.82 | N52: =SUM(N50:N51)*16% -> 9068.03 | O52: 8033.48
K53: TOTAL primera cuota : | M53: =SUM(M50:M52) -> 78334.945 | N53: =SUM(N50:N52) -> 65743.2175 | O53: =SUM(O50:O52) -> 58242.73
K54: Valor segunda cuota : | M54: =(M50*16%)+M50 -> 77247.445 | N54: =(N50*16%)+N50 -> 64655.7175 | O54: 57155.23
K55: GRAN TOTAL ANUAL : | M55: =+M53+M54 -> 155582.39 | N55: =+N53+N54 -> 130398.935 | O55: 115397.96
K57: TARIFAS TRIMESTRALES
K58: Prima del asegurado titular : | M58: =VLOOKUP($G$38,Tablas!$A$830:$G$896,3,TRUE) -> 16914.45312 | N58: =VLOOKUP($G$38,Tablas!$A$830:$G$896,4,TRUE) -> 14159.76562 | O58: =VLOOKUP($G$38,Tablas!$A$830:$G$896,5,TRUE) -> 12506.95312
K59: Prima del (de la) cónyuge: | M59: =IF($C$38=1,0,(VLOOKUP($G$40,Tablas!$A$830:$G$896,3,TRUE))) -> 17337.73438 | N59: =IF($C$38=1,0,(VLOOKUP($G$40,Tablas!$A$830:$G$896,4,TRUE))) -> 14509.14062 | O59: =IF($C$38=1,0,(VLOOKUP($G$40,Tablas!$A$830:$G$896,5,TRUE))) -> 12836.17188
K60: Prima del (de los) Hijo (s) : | M60: =IF($C$40=0,0,(VLOOKUP($C$40,Tablas!$A$897:$G$899,3,TRUE))) -> 0 | N60: =IF($C$40=0,0,(VLOOKUP($C$40,Tablas!$A$897:$G$899,4,TRUE))) -> 0 | O60: =IF($C$40=0,0,(VLOOKUP($C$40,Tablas!$A$897:$G$899,5,TRUE))) -> 0
K61: TOTAL PRIMA NETA : | M61: =SUM(M58:M60) -> 34252.1875 | N61: =SUM(N58:N60) -> 28668.90625 | O61: 25343.125
K62: Costo administrativo anual : | M62: 937.5 | N62: 937.5 | O62: 937.5
K63: IVA (16%) : | M63: =SUM(M61:M62)*16% -> 5630.35 | N63: =SUM(N61:N62)*16% -> 4737.025 | O63: 4204.9
K64: TOTAL primera cuota : | M64: =SUM(M61:M63) -> 40820.0375 | N64: =SUM(N61:N63) -> 34343.43125 | O64: 30485.525
K65: Valor cuota trimestral 2 a 4: | M65: =(M61*16%)+M61 -> 39732.5375 | N65: =(N61*16%)+N61 -> 33255.93125 | O65: 29398.025
K66: GRAN TOTAL ANUAL : | M66: =M64+(M65*3) -> 160017.65 | N66: =N64+(N65*3) -> 134111.225 | O66: =O64+(O65*3) -> 118679.6
K68: TARIFAS MENSUALES
K69: Prima del asegurado titular : | M69: =VLOOKUP($G$38,Tablas!$A$379:$G$445,3,TRUE) -> 5821.71875 | N69: =VLOOKUP($G$38,Tablas!$A$379:$G$445,4,TRUE) -> 4873.59375 | O69: =VLOOKUP($G$38,Tablas!$A$379:$G$445,5,TRUE) -> 4304.71875
K70: Prima del (de la) cónyuge: | M70: =IF($C$38=1,0,(VLOOKUP($G$40,Tablas!$A$379:$G$445,3,TRUE))) -> 5967.40625 | N70: =IF($C$38=1,0,(VLOOKUP($G$40,Tablas!$A$379:$G$445,4,TRUE))) -> 4993.84375 | O70: =IF($C$38=1,0,(VLOOKUP($G$40,Tablas!$A$379:$G$445,5,TRUE))) -> 4418.03125
K71: Prima del (de los) Hijo (s) : | M71: =IF($C$40=0,0,(VLOOKUP($C$40,Tablas!$A$446:$G$448,3,TRUE))) -> 0 | N71: =IF($C$40=0,0,(VLOOKUP($C$40,Tablas!$A$446:$G$448,4,TRUE))) -> 0 | O71: =IF($C$40=0,0,(VLOOKUP($C$40,Tablas!$A$446:$G$448,5,TRUE))) -> 0
K72: TOTAL PRIMA NETA : | M72: =SUM(M69:M71) -> 11789.125 | N72: =SUM(N69:N71) -> 9867.4375 | O72: 8722.75
K73: Costo administrativo anual : | M73: 937.5 | N73: 937.5 | O73: 937.5
K74: IVA (16%) : | M74: =SUM(M72:M73)*16% -> 2036.26 | N74: =SUM(N72:N73)*16% -> 1728.79 | O74: 1545.64
K75: TOTAL primera cuota : | M75: =SUM(M72:M74) -> 14762.885 | N75: =SUM(N72:N74) -> 12533.7275 | O75: 11205.89
K76: Valor cuota mensual 2 a 12 : | M76: =(M72*16%)+M72 -> 13675.385 | N76: =(N72*16%)+N72 -> 11446.2275 | O76: 10118.39
K77: GRAN TOTAL ANUAL : | M77: =M75+(M76*11) -> 165192.12 | N77: =N75+(N76*11) -> 138442.23 | O77: =O75+(O76*11) -> 122508.18
B80: Tarifas en MXN$ - Válidas desde el 01 de enero de 2021
B81: Este presupuesto solamente tiene carácter informativo y en ningún momento expresa compromiso legal para suministrarle cobertura de seguro. La emisión de una póliza de seguro Bupa está sujeta a todas las evaluaciones de riesgo por parte de Bupa y a la recepción de todos los pagos de prima requeridos.

Sheet Global Premier Health Plan
B36: Nombre del asegurado titular : | C36: =+'INGRESO DE DATOS'!$D$15 -> Nombre del Cliente | L36: Deducibles | N36: PLAN A | O36: PLAN 1 | P36: PLAN 2 | Q36: PLAN 3
L37: Dentro del país de residencia | N37: 1000 | O37: 2000 | P37: 5000 | Q37: 10000
B38: Agencia / Agente : | C38: =+'INGRESO DE DATOS'!$D$23 -> Nombre del Agente | L38: Fuera del país de residencia | N38: 1000 | O38: 2000 | P38: 5000 | Q38: 10000
C40: Número de adultos en la póliza : | D40: =+'INGRESO DE DATOS'!$D$17 -> 2 | F40: Edad del asegurado titular : | G40: =+'INGRESO DE DATOS'!$D$19 -> 34 | I40: =VLOOKUP($D$40,Tablas!A1503:B1504,2,0) -> 625 | L40: TARIFAS ANUALES
L41: Prima del asegurado titular : | N41: =VLOOKUP($G$40,Tablas!$A$155:$G$221,3,TRUE)+(625) -> 123087.5 | O41: =VLOOKUP($G$40,Tablas!$A$155:$G$221,4,TRUE)+(625) -> 88925 | P41: =VLOOKUP($G$40,Tablas!$A$155:$G$221,5,TRUE)+(625) -> 63775 | Q41: =VLOOKUP($G$40,Tablas!$A$155:$G$221,6,TRUE)+(625) -> 47687.5
C42: Número de hijos en la póliza : | D42: =+'INGRESO DE DATOS'!$H$17 -> 0 | F42: Edad del (de la) cónyuge : | G42: =+'INGRESO DE DATOS'!$H$19 -> 35 | L42: Prima del (de la) cónyuge: | N42: =IF($D$40=1,0,(VLOOKUP($G$42,Tablas!$A$155:$G$221,3,TRUE)))+($I$40) -> 125600 | O42: =IF($D$40=1,0,(VLOOKUP($G$42,Tablas!$A$155:$G$221,4,TRUE)))+($I$40) -> 90737.5 | P42: =IF($D$40=1,0,(VLOOKUP($G$42,Tablas!$A$155:$G$221,5,TRUE)))+($I$40) -> 65012.5 | Q42: =IF($D$40=1,0,(VLOOKUP($G$42,Tablas!$A$155:$G$221,6,TRUE)))+($I$40) -> 48637.5
L43: Prima del (de los) Hijo (s) : | N43: =IF($D$42=0,0,(VLOOKUP($D$42,Tablas!$A$222:$G$224,3,TRUE))) -> 0 | O43: =IF($D$42=0,0,(VLOOKUP($D$42,Tablas!$A$222:$G$224,4,TRUE))) -> 0 | P43: =IF($D$42=0,0,(VLOOKUP($D$42,Tablas!$A$222:$G$224,5,TRUE))) -> 0 | Q43: =IF($D$42=0,0,(VLOOKUP($D$42,Tablas!$A$222:$G$224,6,TRUE))) -> 0
C44: FECHA DE COTIZACION : | E44: =NOW() -> 2021-01-13T13:38:21.570 | L44: TOTAL PRIMA NETA : | N44: =SUM(N41:N43) -> 248687.5 | O44: =SUM(O41:O43) -> 179662.5 | P44: 128787.5 | Q44: =SUM(Q41:Q43) -> 96325
E45: FALSE | L45: Costo administrativo anual : | N45: 937.5 | O45: 937.5 | P45: 937.5 | Q45: 937.5
L46: IVA (16%) : | N46: =SUM(N44:N45)*16% -> 39940 | O46: =SUM(O44:O45)*16% -> 28896 | P46: 20756 | Q46: 15562
L47: GRAN TOTAL ANUAL : | N47: =SUM(N44:N46) -> 289565 | O47: =SUM(O44:O46) -> 209496 | P47: 150481 | Q47: 112824.5
L49: TARIFAS SEMESTRALES
L50: Prima del asegurado titular : | N50: =VLOOKUP($G$40,Tablas!$A$530:$G$596,3,TRUE) -> 64313.21875 | O50: =VLOOKUP($G$40,Tablas!$A$530:$G$596,4,TRUE) -> 46463.3125 | P50: =VLOOKUP($G$40,Tablas!$A$530:$G$596,5,TRUE) -> 33322.4375 | Q50: =VLOOKUP($G$40,Tablas!$A$530:$G$596,6,TRUE) -> 24916.71875
L51: Prima del (de la) cónyuge: | N51: =IF($D$40=1,0,(VLOOKUP($G$42,Tablas!$A$530:$G$596,3,TRUE))) -> 65626 | O51: =IF($D$40=1,0,(VLOOKUP($G$42,Tablas!$A$530:$G$596,4,TRUE))) -> 47410.34375 | P51: =IF($D$40=1,0,(VLOOKUP($G$42,Tablas!$A$530:$G$596,5,TRUE))) -> 33969.03125 | Q51: =IF($D$40=1,0,(VLOOKUP($G$42,Tablas!$A$530:$G$596,6,TRUE))) -> 25413.09375
L52: Prima del (de los) Hijo (s) : | N52: =IF($D$42=0,0,(VLOOKUP($D$42,Tablas!$A$597:$G$599,3,TRUE))) -> 0 | O52: =IF($D$42=0,0,(VLOOKUP($D$42,Tablas!$A$597:$G$599,4,TRUE))) -> 0 | P52: =IF($D$42=0,0,(VLOOKUP($D$42,Tablas!$A$597:$G$599,5,TRUE))) -> 0 | Q52: =IF($D$42=0,0,(VLOOKUP($D$42,Tablas!$A$597:$G$599,6,TRUE))) -> 0
L53: TOTAL PRIMA NETA : | N53: =SUM(N50:N52) -> 129939.2188 | O53: =SUM(O50:O52) -> 93873.65625 | P53: 67291.46875 | Q53: 50329.8125
L54: Costo administrativo anual : | N54: 937.5 | O54: 937.5 | P54: 937.5 | Q54: 937.5
L55: IVA (16%) : | N55: =SUM(N53:N54)*16% -> 20940.275 | O55: =SUM(O53:O54)*16% -> 15169.785 | P55: 10916.635 | Q55: 8202.77
L56: TOTAL primera cuota : | N56: =SUM(N53:N55) -> 151816.9937 | O56: =SUM(O53:O55) -> 109980.9413 | P56: 79145.60375 | Q56: 59470.0825
L57: Valor segunda cuota : | N57: =(N53*16%)+N53 -> 150729.4937 | O57: =(O53*16%)+O53 -> 108893.4413 | P57: 78058.10375 | Q57: 58382.5825
L58: GRAN TOTAL ANUAL : | N58: =N56+N57 -> 302546.4875 | O58: =O56+O57 -> 218874.3825 | P58: =P56+P57 -> 157203.7075 | Q58: =Q56+Q57 -> 117852.665
L60: TARIFAS TRIMESTRALES
L61: Prima del asegurado titular : | N61: =VLOOKUP($G$40,Tablas!$A$755:$G$821,3,TRUE) -> 33079.76562 | O61: =VLOOKUP($G$40,Tablas!$A$755:$G$821,4,TRUE) -> 23898.59375 | P61: =VLOOKUP($G$40,Tablas!$A$755:$G$821,5,TRUE) -> 17139.53125 | Q61: =VLOOKUP($G$40,Tablas!$A$755:$G$821,6,TRUE) -> 12816.01562
L62: Prima del (de la) cónyuge: | N62: =IF($D$40=1,0,(VLOOKUP($G$42,Tablas!$A$755:$G$821,3,TRUE))) -> 33755 | O62: =IF($D$40=1,0,(VLOOKUP($G$42,Tablas!$A$755:$G$821,4,TRUE))) -> 24385.70312 | P62: =IF($D$40=1,0,(VLOOKUP($G$42,Tablas!$A$755:$G$821,5,TRUE))) -> 17472.10938 | Q62: =IF($D$40=1,0,(VLOOKUP($G$42,Tablas!$A$755:$G$821,6,TRUE))) -> 13071.32812
L63: Prima del (de los) Hijo (s) : | N63: =IF($D$42=0,0,(VLOOKUP($D$42,Tablas!$A$822:$G$824,3,TRUE))) -> 0 | O63: =IF($D$42=0,0,(VLOOKUP($D$42,Tablas!$A$822:$G$824,4,TRUE))) -> 0 | P63: =IF($D$42=0,0,(VLOOKUP($D$42,Tablas!$A$822:$G$824,5,TRUE))) -> 0 | Q63: =IF($D$42=0,0,(VLOOKUP($D$42,Tablas!$A$822:$G$824,6,TRUE))) -> 0
L64: TOTAL PRIMA NETA : | N64: =SUM(N61:N63) -> 66834.76562 | O64: =SUM(O61:O63) -> 48284.29688 | P64: =SUM(P61:P63) -> 34611.64062 | Q64: =SUM(Q61:Q63) -> 25887.34375
L65: Costo administrativo anual : | N65: 937.5 | O65: 937.5 | P65: 937.5 | Q65: 937.5
L66: IVA (16%) : | N66: =SUM(N64:N65)*16% -> 10843.5625 | O66: =SUM(O64:O65)*16% -> 7875.4875 | P66: 5687.8625 | Q66: 4291.975
L67: TOTAL primera cuota : | N67: =SUM(N64:N66) -> 78615.82812 | O67: =SUM(O64:O66) -> 57097.28438 | P67: 41237.00313 | Q67: 31116.81875
L68: Valor cuota trimestral 2 a 4: | N68: =(N64*16%)+N64 -> 77528.32812 | O68: =(O64*16%)+O64 -> 56009.78438 | P68: 40149.50313 | Q68: 30029.31875
L69: GRAN TOTAL ANUAL : | N69: =N67+(N68*3) -> 311200.8125 | O69: =O67+(O68*3) -> 225126.6375 | P69: =P67+(P68*3) -> 161685.5125 | Q69: =Q67+(Q68*3) -> 121204.775
L71: TARIFAS MENSUALES
L72: Prima del asegurado titular : | N72: =VLOOKUP($G$40,Tablas!$A$229:$G$295,3,TRUE) -> 11385.59375 | O72: =VLOOKUP($G$40,Tablas!$A$229:$G$295,4,TRUE) -> 8225.5625 | P72: =VLOOKUP($G$40,Tablas!$A$229:$G$295,5,TRUE) -> 5899.1875 | Q72: =VLOOKUP($G$40,Tablas!$A$229:$G$295,6,TRUE) -> 4411.09375
L73: Prima del (de la) cónyuge: | N73: =IF($D$40=1,0,(VLOOKUP($G$42,Tablas!$A$229:$G$295,3,TRUE))) -> 11618 | O73: =IF($D$40=1,0,(VLOOKUP($G$42,Tablas!$A$229:$G$295,4,TRUE))) -> 8393.21875 | P73: =IF($D$40=1,0,(VLOOKUP($G$42,Tablas!$A$229:$G$295,5,TRUE))) -> 6013.65625 | Q73: =IF($D$40=1,0,(VLOOKUP($G$42,Tablas!$A$229:$G$295,6,TRUE))) -> 4498.96875
L74: Prima del (de los) Hijo (s) : | N74: =IF($D$42=0,0,(VLOOKUP($D$42,Tablas!$A$296:$G$298,3,TRUE))) -> 0 | O74: =IF($D$42=0,0,(VLOOKUP($D$42,Tablas!$A$296:$G$298,4,TRUE))) -> 0 | P74: =IF($D$42=0,0,(VLOOKUP($D$42,Tablas!$A$296:$G$298,5,TRUE))) -> 0 | Q74: =IF($D$42=0,0,(VLOOKUP($D$42,Tablas!$A$296:$G$298,6,TRUE))) -> 0
L75: TOTAL PRIMA NETA : | N75: =SUM(N72:N74) -> 23003.59375 | O75: =SUM(O72:O74) -> 16618.78125 | P75: 11912.84375 | Q75: 8910.0625
L76: Costo administrativo anual : | N76: 937.5 | O76: 937.5 | P76: 937.5 | Q76: 937.5
L77: IVA (16%) : | N77: =SUM(N75:N76)*16% -> 3830.575 | O77: =SUM(O75:O76)*16% -> 2809.005 | P77: 2056.055 | Q77: 1575.61
L78: TOTAL primera cuota : | N78: =SUM(N75:N77) -> 27771.66875 | O78: =SUM(O75:O77) -> 20365.28625 | P78: 14906.39875 | Q78: 11423.1725
L79: Valor cuota mensual 2 a 12 : | N79: =(N75*16%)+N75 -> 26684.16875 | O79: =(O75*16%)+O75 -> 19277.78625 | P79: 13818.89875 | Q79: 10335.6725
L80: GRAN TOTAL ANUAL : | N80: =N78+(N79*11) -> 321297.525 | O80: =O78+(O79*11) -> 232420.935 | P80: =P78+(P79*11) -> 166914.285 | Q80: =Q78+(Q79*11) -> 125115.57
B82: Tarifas en MXN$ - Válidas desde el 01 de enero de 2021
B83: Este presupuesto solamente tiene carácter informativo y en ningún momento expresa compromiso legal para suministrarle cobertura de seguro. La emisión de una póliza de seguro Bupa está sujeta a todas las evaluaciones de riesgo por parte de Bupa y a la recepción de todos los pagos de prima requeridos.

Sheet Global Elite Health Plan
B26: Nombre del asegurado titular : | C26: =+'INGRESO DE DATOS'!$D$15 -> Nombre del Cliente | K26: Deducibles | M26: PLAN 1 | N26: PLAN 2 | O26: PLAN 3 | P26: PLAN 4 | Q26: PLAN 5
K27: Dentro del país de residencia | M27: 1000 | N27: 2000 | O27: 3500 | P27: 5000 | Q27: 10000
B28: Agencia / Agente : | C28: =+'INGRESO DE DATOS'!$D$23 -> Nombre del Agente | K28: Fuera del país de residencia | M28: 1000 | N28: 2000 | O28: 3500 | P28: 5000 | Q28: 10000
B30: Número de adultos en la póliza : | D30: =+'INGRESO DE DATOS'!$D$17 -> 2 | E30: Edad del asegurado titular : | G30: =+'INGRESO DE DATOS'!$D$19 -> 34 | I30: =VLOOKUP($D$30,Tablas!A1503:B1504,2,0) -> 625 | K30: TARIFAS ANUALES
K31: Prima del asegurado titular : | M31: =VLOOKUP($G$30,Tablas!$A$6:$G$72,3,TRUE)+(625) -> 188587.5 | N31: =VLOOKUP($G$30,Tablas!$A$6:$G$72,4,TRUE)+(625) -> 136200 | O31: =VLOOKUP($G$30,Tablas!$A$6:$G$72,5,TRUE)+(625) -> 105475 | P31: =VLOOKUP($G$30,Tablas!$A$6:$G$72,6,TRUE)+(625) -> 91587.5 | Q31: =VLOOKUP($G$30,Tablas!$A$6:$G$72,7,TRUE)+(625) -> 71250
B32: Número de hijos en la póliza : | D32: =+'INGRESO DE DATOS'!$H$17 -> 0 | E32: Edad del (de la) cónyuge : | G32: =+'INGRESO DE DATOS'!$H$19 -> 35 | K32: Prima del (de la) cónyuge: | M32: =IF($D$30=1,0,(VLOOKUP($G$32,Tablas!$A$6:$G$72,3,TRUE)))+($I$30) -> 192462.5 | N32: =IF($D$30=1,0,(VLOOKUP($G$32,Tablas!$A$6:$G$72,4,TRUE)))+($I$30) -> 138987.5 | O32: =IF($D$30=1,0,(VLOOKUP($G$32,Tablas!$A$6:$G$72,5,TRUE)))+($I$30) -> 107650 | P32: =IF($D$30=1,0,(VLOOKUP($G$32,Tablas!$A$6:$G$72,6,TRUE)))+($I$30) -> 93475 | Q32: =IF($D$30=1,0,(VLOOKUP($G$32,Tablas!$A$6:$G$72,7,TRUE)))+($I$30) -> 72712.5
K33: Prima del (de los) Hijo(s) : | M33: =IF($D$32=0,0,(VLOOKUP($D$32,Tablas!$A$73:$G$75,3,TRUE))) -> 0 | N33: =IF($D$32=0,0,(VLOOKUP($D$32,Tablas!$A$73:$G$75,4,TRUE))) -> 0 | O33: =IF($D$32=0,0,(VLOOKUP($D$32,Tablas!$A$73:$G$75,5,TRUE))) -> 0 | P33: =IF($D$32=0,0,(VLOOKUP($D$32,Tablas!$A$73:$G$75,6,TRUE))) -> 0 | Q33: =IF($D$32=0,0,(VLOOKUP($D$32,Tablas!$A$73:$G$75,7,TRUE))) -> 0
C34: FECHA DE COTIZACION : | F34: =NOW() -> 2021-01-13T13:38:21.570 | K34: TOTAL PRIMA NETA : | M34: =SUM(M31:M33) -> 381050 | N34: =SUM(N31:N33) -> 275187.5 | O34: 213125 | P34: 185062.5 | Q34: 143962.5
F35: FALSE | K35: Costo administrativo anual : | M35: 937.5 | N35: 937.5 | O35: 937.5 | P35: 937.5 | Q35: 937.5
K36: IVA (16%) : | M36: =SUM(M34:M35)*16% -> 61118 | N36: =SUM(N34:N35)*16% -> 44180 | O36: =SUM(O34:O35)*16% -> 34250 | P36: 29760 | Q36: 23184
K37: GRAN TOTAL ANUAL : | M37: =SUM(M34:M36) -> 443105.5 | N37: =SUM(N34:N36) -> 320305 | O37: =SUM(O34:O36) -> 248312.5 | P37: 215760 | Q37: 168084
K39: TARIFAS SEMESTRALES
K40: Prima del asegurado titular : | M40: =VLOOKUP($G$30,Tablas!$A$455:$G$521,3,TRUE) -> 98536.96875 | N40: =VLOOKUP($G$30,Tablas!$A$455:$G$521,4,TRUE) -> 71164.5 | O40: =VLOOKUP($G$30,Tablas!$A$455:$G$521,5,TRUE) -> 55110.6875 | P40: =VLOOKUP($G$30,Tablas!$A$455:$G$521,6,TRUE) -> 47854.46875 | Q40: =VLOOKUP($G$30,Tablas!$A$455:$G$521,7,TRUE) -> 37228.125
K41: Prima del (de la) cónyuge: | M41: =IF($D$30=1,0,(VLOOKUP($G$32,Tablas!$A$455:$G$521,3,TRUE))) -> 100561.6562 | N41: =IF($D$30=1,0,(VLOOKUP($G$32,Tablas!$A$455:$G$521,4,TRUE))) -> 72620.96875 | O41: =IF($D$30=1,0,(VLOOKUP($G$32,Tablas!$A$455:$G$521,5,TRUE))) -> 56247.125 | P41: =IF($D$30=1,0,(VLOOKUP($G$32,Tablas!$A$455:$G$521,6,TRUE))) -> 48840.6875 | Q41: =IF($D$30=1,0,(VLOOKUP($G$32,Tablas!$A$455:$G$521,7,TRUE))) -> 37992.28125
K42: Prima del (de los) Hijo (s) : | M42: =IF($D$32=0,0,(VLOOKUP($D$32,Tablas!$A$522:$G$524,3,TRUE))) -> 0 | N42: =IF($D$32=0,0,(VLOOKUP($D$32,Tablas!$A$522:$G$524,4,TRUE))) -> 0 | O42: =IF($D$32=0,0,(VLOOKUP($D$32,Tablas!$A$522:$G$524,5,TRUE))) -> 0 | P42: =IF($D$32=0,0,(VLOOKUP($D$32,Tablas!$A$522:$G$524,6,TRUE))) -> 0 | Q42: =IF($D$32=0,0,(VLOOKUP($D$32,Tablas!$A$522:$G$524,7,TRUE))) -> 0
K43: TOTAL PRIMA NETA : | M43: =SUM(M40:M42) -> 199098.625 | N43: =SUM(N40:N42) -> 143785.4688 | O43: 111357.8125 | P43: 96695.15625 | Q43: 75220.40625
K44: Costo administrativo anual : | M44: 937.5 | N44: 937.5 | O44: 937.5 | P44: 937.5 | Q44: 937.5
K45: IVA (16%) : | M45: =SUM(M43:M44)*16% -> 32005.78 | N45: =SUM(N43:N44)*16% -> 23155.675 | O45: 17967.25 | P45: 15621.225 | Q45: 12185.265
K46: TOTAL primera cuota : | M46: =SUM(M43:M45) -> 232041.905 | N46: =SUM(N43:N45) -> 167878.6437 | O46: 130262.5625 | P46: 113253.8813 | Q46: 88343.17125
K47: Valor segunda cuota : | M47: =(M43*16%)+M43 -> 230954.405 | N47: =(N43*16%)+N43 -> 166791.1437 | O47: 129175.0625 | P47: 112166.3813 | Q47: 87255.67125
K48: GRAN TOTAL ANUAL : | M48: =M46+M47 -> 462996.31 | N48: =N46+N47 -> 334669.7875 | O48: 259437.625 | P48: =P46+P47 -> 225420.2625 | Q48: 175598.8425
K50: TARIFAS TRIMESTRALES
K51: Prima del asegurado titular : | M51: =VLOOKUP($G$30,Tablas!$A$680:$G$746,3,TRUE) -> 50682.89062 | N51: =VLOOKUP($G$30,Tablas!$A$680:$G$746,4,TRUE) -> 36603.75 | O51: =VLOOKUP($G$30,Tablas!$A$680:$G$746,5,TRUE) -> 28346.40625 | P51: =VLOOKUP($G$30,Tablas!$A$680:$G$746,6,TRUE) -> 24614.14062 | Q51: =VLOOKUP($G$30,Tablas!$A$680:$G$746,7,TRUE) -> 19148.4375
K52: Prima del (de la) cónyuge: | M52: =IF($D$30=1,0,(VLOOKUP($G$32,Tablas!$A$680:$G$746,3,TRUE))) -> 51724.29688 | N52: =IF($D$30=1,0,(VLOOKUP($G$32,Tablas!$A$680:$G$746,4,TRUE))) -> 37352.89062 | O52: =IF($D$30=1,0,(VLOOKUP($G$32,Tablas!$A$680:$G$746,5,TRUE))) -> 28930.9375 | P52: =IF($D$30=1,0,(VLOOKUP($G$32,Tablas!$A$680:$G$746,6,TRUE))) -> 25121.40625 | Q52: =IF($D$30=1,0,(VLOOKUP($G$32,Tablas!$A$680:$G$746,7,TRUE))) -> 19541.48438
K53: Prima del (de los) Hijo (s) : | M53: =IF($D$32=0,0,(VLOOKUP($D$32,Tablas!$A$747:$G$749,3,TRUE))) -> 0 | N53: =IF($D$32=0,0,(VLOOKUP($D$32,Tablas!$A$747:$G$749,4,TRUE))) -> 0 | O53: =IF($D$32=0,0,(VLOOKUP($D$32,Tablas!$A$747:$G$749,5,TRUE))) -> 0 | P53: =IF($D$32=0,0,(VLOOKUP($D$32,Tablas!$A$747:$G$749,6,TRUE))) -> 0 | Q53: =IF($D$32=0,0,(VLOOKUP($D$32,Tablas!$A$747:$G$749,7,TRUE))) -> 0
K54: TOTAL PRIMA NETA : | M54: =SUM(M51:M53) -> 102407.1875 | N54: =SUM(N51:N53) -> 73956.64062 | O54: 57277.34375 | P54: 49735.54688 | Q54: 38689.92188
K55: Costo administrativo anual : | M55: 937.5 | N55: 937.5 | O55: 937.5 | P55: 937.5 | Q55: 937.5
K56: IVA (16%) : | M56: =SUM(M54:M55)*16% -> 16535.15 | N56: =SUM(N54:N55)*16% -> 11983.0625 | O56: 9314.375 | P56: 8107.6875 | Q56: 6340.3875
K57: TOTAL primera cuota : | M57: =SUM(M54:M56) -> 119879.8375 | N57: =SUM(N54:N56) -> 86877.20312 | O57: 67529.21875 | P57: 58780.73438 | Q57: 45967.80937
K58: Valor cuota trimestral 2 a 4: | M58: =(M54*16%)+M54 -> 118792.3375 | N58: =(N54*16%)+N54 -> 85789.70312 | O58: 66441.71875 | P58: 57693.23438 | Q58: 44880.30937
K59: GRAN TOTAL ANUAL : | M59: =M57+(M58*3) -> 476256.85 | N59: =N57+(N58*3) -> 344246.3125 | O59: 266854.375 | P59: 231860.4375 | Q59: 180608.7375
K61: TARIFAS MENSUALES
K62: Prima del asegurado titular : | M62: =VLOOKUP($G$30,Tablas!$A$80:$G$146,3,TRUE) -> 17444.34375 | N62: =VLOOKUP($G$30,Tablas!$A$80:$G$146,4,TRUE) -> 12598.5 | O62: =VLOOKUP($G$30,Tablas!$A$80:$G$146,5,TRUE) -> 9756.4375 | P62: =VLOOKUP($G$30,Tablas!$A$80:$G$146,6,TRUE) -> 8471.84375 | Q62: =VLOOKUP($G$30,Tablas!$A$80:$G$146,7,TRUE) -> 6590.625
K63: Prima del (de la) cónyuge: | M63: =IF($D$30=1,0,(VLOOKUP($G$32,Tablas!$A$80:$G$146,3,TRUE))) -> 17802.78125 | N63: =IF($D$30=1,0,(VLOOKUP($G$32,Tablas!$A$80:$G$146,4,TRUE))) -> 12856.34375 | O63: =IF($D$30=1,0,(VLOOKUP($G$32,Tablas!$A$80:$G$146,5,TRUE))) -> 9957.625 | P63: =IF($D$30=1,0,(VLOOKUP($G$32,Tablas!$A$80:$G$146,6,TRUE))) -> 8646.4375 | Q63: =IF($D$30=1,0,(VLOOKUP($G$32,Tablas!$A$80:$G$146,7,TRUE))) -> 6725.90625
K64: Prima del (de los) Hijo (s) : | M64: =IF($D$32=0,0,(VLOOKUP($D$32,Tablas!$A$147:$G$149,3,TRUE))) -> 0 | N64: =IF($D$32=0,0,(VLOOKUP($D$32,Tablas!$A$147:$G$149,4,TRUE))) -> 0 | O64: =IF($D$32=0,0,(VLOOKUP($D$32,Tablas!$A$147:$G$149,5,TRUE))) -> 0 | P64: =IF($D$32=0,0,(VLOOKUP($D$32,Tablas!$A$147:$G$149,6,TRUE))) -> 0 | Q64: =IF($D$32=0,0,(VLOOKUP($D$32,Tablas!$A$147:$G$149,7,TRUE))) -> 0
K65: TOTAL PRIMA NETA : | M65: =SUM(M62:M64) -> 35247.125 | N65: =SUM(N62:N64) -> 25454.84375 | O65: 19714.0625 | P65: 17118.28125 | Q65: 13316.53125
K66: Costo administrativo anual : | M66: 937.5 | N66: 937.5 | O66: 937.5 | P66: 937.5 | Q66: 937.5
K67: IVA (16%) : | M67: =SUM(M65:M66)*16% -> 5789.54 | N67: =SUM(N65:N66)*16% -> 4222.775 | O67: 3304.25 | P67: 2888.925 | Q67: 2280.645
K68: TOTAL primera cuota : | M68: =SUM(M65:M67) -> 41974.165 | N68: =SUM(N65:N67) -> 30615.11875 | O68: =SUM(O65:O67) -> 23955.8125 | P68: 20944.70625 | Q68: 16534.67625
K69: Valor cuota mensual 2 a 12 : | M69: =(M65*16%)+M65 -> 40886.665 | N69: =(N65*16%)+N65 -> 29527.61875 | O69: 22868.3125 | P69: 19857.20625 | Q69: 15447.17625
K70: GRAN TOTAL ANUAL : | M70: =M68+(M69*11) -> 491727.48 | N70: =N68+(N69*11) -> 355418.925 | O70: =O68+(O69*11) -> 275507.25 | P70: =P68+(P69*11) -> 239373.975 | Q70: =Q68+(Q69*11) -> 186453.615
B72: Tarifas en MXN$ - Válidas desde el 01 de enero de 2021
B73: Este presupuesto solamente tiene carácter informativo y en ningún momento expresa compromiso legal para suministrarle cobertura de seguro. La emisión de una póliza de seguro Bupa está sujeta a todas las evaluaciones de riesgo por parte de Bupa y a la recepción de todos los pagos de prima requeridos.

Sheet Global Ultimate Health Plan
N19: FALSE
B20: Nombre del asegurado titular : | C20: =+'INGRESO DE DATOS'!$D$15 -> Nombre del Cliente | L20: Deducibles | N20: PLAN 1 | O20: PLAN 2 | P20: PLAN 3
L21: Dentro del país de residencia | N21: 0 | O21: 1000 | P21: 2000
B22: Agencia / Agente : | C22: =+'INGRESO DE DATOS'!$D$23 -> Nombre del Agente | L22: Fuera del país de residencia | N22: 0 | O22: 1000 | P22: 2000
B24: Número de adultos en la póliza : | D24: =+'INGRESO DE DATOS'!$D$17 -> 2 | E24: Edad del asegurado titular : | G24: =+'INGRESO DE DATOS'!$D$19 -> 34 | H24: =VLOOKUP($D$24,Tablas!A1503:B1504,2,0) -> 625 | L24: TARIFAS ANUALES
L25: Prima del asegurado titular : | N25: =VLOOKUP($G$24,Tablas!$A$1205:$G$1271,3,TRUE)+625 -> 456200 | O25: =VLOOKUP($G$24,Tablas!$A$1205:$G$1271,4,TRUE)+625 -> 297837.5 | P25: =VLOOKUP($G$24,Tablas!$A$1205:$G$1271,5,TRUE)+625 -> 214187.5
B26: Número de hijos en la póliza : | D26: =+'INGRESO DE DATOS'!$H$17 -> 0 | E26: Edad del (de la) cónyuge : | G26: =+'INGRESO DE DATOS'!$H$19 -> 35 | L26: Prima del (de la) cónyuge: | N26: =IF($D$24=1,0,(VLOOKUP($G$26,Tablas!$A$1205:$G$1271,3,TRUE)))+($H$24) -> 465675 | O26: =IF($D$24=1,0,(VLOOKUP($G$26,Tablas!$A$1205:$G$1271,4,TRUE)))+($H$24) -> 304000 | P26: =IF($D$24=1,0,(VLOOKUP($G$26,Tablas!$A$1205:$G$1271,5,TRUE)))+($H$24) -> 218575
L27: Prima del (de los) Hijo (s) : | N27: =IF($D$26=0,0,(VLOOKUP(D26,Tablas!$A$1272:$G$1274,3,TRUE))) -> 0 | O27: =IF(D26=0,0,(VLOOKUP(D26,Tablas!$A$1272:$G$1274,4,TRUE))) -> 0 | P27: =IF(D26=0,0,(VLOOKUP(D26,Tablas!$A$1272:$G$1274,5,TRUE))) -> 0
E28: FECHA DE COTIZACION : | L28: TOTAL PRIMA NETA : | N28: =SUM(N25:N27) -> 921875 | O28: =SUM(O25:O27) -> 601837.5 | P28: 432762.5
E29: =NOW() -> 2021-01-13T13:38:21.570 | L29: Costo administrativo anual : | N29: 937.5 | O29: 937.5 | P29: 937.5
L30: IVA (16%) : | N30: =+N28*16% -> 147500 | O30: =+O28*16% -> 96294 | P30: =+P28*16% -> 69242
L31: GRAN TOTAL ANUAL : | N31: =SUM(N28:N30) + N29*0.16 -> 1070462.5 | O31: =SUM(O28:O30) + O29*0.16 -> 699219 | P31: 503092
L33: TARIFAS SEMESTRALES
L34: Prima del asegurado titular : | N34: =VLOOKUP($G$24,Tablas!$A$1429:$G$1495,3,TRUE) -> 238364.5 | O34: =VLOOKUP($G$24,Tablas!$A$1429:$G$1495,4,TRUE) -> 155620.0938 | P34: =VLOOKUP($G$24,Tablas!$A$1429:$G$1495,5,TRUE) -> 111912.9688
L35: Prima del (de la) cónyuge: | N35: =IF($D$24=1,0,(VLOOKUP($G$26,Tablas!$A$1429:$G$1495,3,TRUE))) -> 243315.1875 | O35: =IF($D$24=1,0,(VLOOKUP($G$26,Tablas!$A$1429:$G$1495,4,TRUE))) -> 158840 | P35: =IF($D$24=1,0,(VLOOKUP($G$26,Tablas!$A$1429:$G$1495,5,TRUE))) -> 114205.4375
L36: Prima del (de los) Hijo (s) : | N36: =IF($D$26=0,0,(VLOOKUP($D$26,Tablas!$A$1496:$G$1498,3,TRUE))) -> 0 | O36: =IF($D$26=0,0,(VLOOKUP($D$26,Tablas!$A$1496:$G$1498,4,TRUE))) -> 0 | P36: =IF($D$26=0,0,(VLOOKUP($D$26,Tablas!$A$1496:$G$1498,5,TRUE))) -> 0
L37: TOTAL PRIMA NETA : | N37: =SUM(N34:N36) -> 481679.6875 | O37: =SUM(O34:O36) -> 314460.0938 | P37: 226118.4062
L38: Costo administrativo anual : | N38: 937.5 | O38: 937.5 | P38: 937.5
L39: IVA (16%) : | N39: =SUM(N37:N38)*16% -> 77218.75 | O39: =SUM(O37:O38)*16% -> 50463.615 | P39: 36328.945
L40: TOTAL primera cuota : | N40: =SUM(N37:N39) -> 559835.9375 | O40: =SUM(O37:O39) -> 365861.2087 | P40: 263384.8513
L41: Valor segunda cuota : | N41: =(N37*16%)+N37 -> 558748.4375 | O41: =(O37*16%)+O37 -> 364773.7087 | P41: 262297.3513
L42: GRAN TOTAL ANUAL : | N42: =N40+N41 -> 1118584.375 | O42: =O40+O41 -> 730634.9175 | P42: 525682.2025
L44: TARIFAS TRIMESTRALES
L45: Prima del asegurado titular : | N45: =VLOOKUP($G$24,Tablas!$A$1354:$G$1420,3,TRUE) -> 122603.75 | O45: =VLOOKUP($G$24,Tablas!$A$1354:$G$1420,4,TRUE) -> 80043.82812 | P45: =VLOOKUP($G$24,Tablas!$A$1354:$G$1420,5,TRUE) -> 57562.89062
L46: Prima del (de la) cónyuge: | N46: =IF($D$24=1,0,(VLOOKUP($G$26,Tablas!$A$1354:$G$1420,3,TRUE)))+($I$24) -> 125150.1562 | O46: =IF($D$24=1,0,(VLOOKUP($G$26,Tablas!$A$1354:$G$1420,4,TRUE)))+($I$24) -> 81700 | P46: =IF($D$24=1,0,(VLOOKUP($G$26,Tablas!$A$1354:$G$1420,5,TRUE)))+($I$24) -> 58742.03125
L47: Prima del (de los) Hijo (s) : | N47: =IF($D$26=0,0,(VLOOKUP($D$26,Tablas!$A$1421:$G$1423,3,TRUE))) -> 0 | O47: =IF($D$26=0,0,(VLOOKUP($D$26,Tablas!$A$1421:$G$1423,4,TRUE))) -> 0 | P47: =IF($D$26=0,0,(VLOOKUP($D$26,Tablas!$A$1421:$G$1423,5,TRUE))) -> 0
L48: TOTAL PRIMA NETA : | N48: =SUM(N45:N47) -> 247753.9062 | O48: =SUM(O45:O47) -> 161743.8281 | P48: =SUM(P45:P47) -> 116304.9219
L49: Costo administrativo anual : | N49: 937.5 | O49: 937.5 | P49: 937.5
L50: IVA (16%) : | N50: =+N48*16% -> 39640.625 | O50: =+O48*16% -> 25879.0125 | P50: =+P48*16% -> 18608.7875
L51: TOTAL primera cuota : | N51: =SUM(N48:N50) + N49*0.16 -> 288482.0312 | O51: =SUM(O48:O50) + O49*0.16 -> 188710.3406 | P51: 136001.2094
L52: Valor cuota trimestral 2 a 4: | N52: =(N48 + N50) -> 287394.5312 | O52: =(O48 + O50) -> 187622.8406 | P52: 134913.7094
L53: GRAN TOTAL ANUAL : | N53: =N51+(N52*3) -> 1150665.625 | O53: =O51+(O52*3) -> 751578.8625 | P53: 540742.3375
L55: TARIFAS MENSUALES
L56: Prima del asegurado titular : | N56: =VLOOKUP($G$24,Tablas!$A$1279:$G$1345,3,TRUE) -> 42198.5 | O56: =VLOOKUP($G$24,Tablas!$A$1279:$G$1345,4,TRUE) -> 27549.96875 | P56: =VLOOKUP($G$24,Tablas!$A$1279:$G$1345,5,TRUE) -> 19812.34375
L57: Prima del (de la) cónyuge: | N57: =IF($D$24=1,0,(VLOOKUP($G$26,Tablas!$A$1279:$G$1345,3,TRUE))) -> 43074.9375 | O57: =IF($D$24=1,0,(VLOOKUP($G$26,Tablas!$A$1279:$G$1345,4,TRUE))) -> 28120 | P57: =IF($D$24=1,0,(VLOOKUP($G$26,Tablas!$A$1279:$G$1345,5,TRUE))) -> 20218.1875
L58: Prima del (de los) Hijo (s) : | N58: =IF($D$26=0,0,(VLOOKUP(#REF!,Tablas!$A$1346:$G$1348,3,TRUE))) -> 0 | O58: =IF($D$26=0,0,(VLOOKUP($D$26,Tablas!$A$1346:$G$1348,4,TRUE))) -> 0 | P58: =IF($D$26=0,0,(VLOOKUP($D$26,Tablas!$A$1346:$G$1348,5,TRUE))) -> 0
L59: TOTAL PRIMA NETA : | N59: =SUM(N56:N58) -> 85273.4375 | O59: =SUM(O56:O58) -> 55669.96875 | P59: =SUM(P56:P58) -> 40030.53125
L60: Costo administrativo anual : | N60: 937.5 | O60: 937.5 | P60: 937.5
L61: IVA (16%) : | N61: =+N59*16% -> 13643.75 | O61: =+O59*16% -> 8907.195 | P61: =+P59*16% -> 6404.885
L62: TOTAL primera cuota : | N62: =SUM(N59:N61) + N60*0.16 -> 100004.6875 | O62: =SUM(O59:O61) + O60*0.16 -> 65664.66375 | P62: =SUM(P59:P61) + P60*0.16 -> 47522.91625
L63: Valor cuota mensual 2 a 12 : | N63: =(N59 + N61) -> 98917.1875 | O63: =(O59 + O61) -> 64577.16375 | P63: 46435.41625
L64: GRAN TOTAL ANUAL : | N64: =N62+(N63*11) -> 1188093.75 | O64: =O62+(O63*11) -> 776013.465 | P64: =P62+(P63*11) -> 558312.495
B67: Tarifas en MXN$ - Válidas desde el 01 de enero de 2021
B68: Este presupuesto solamente tiene carácter informativo y en ningún momento expresa compromiso legal para suministrarle cobertura de seguro. La emisión de una póliza de seguro Bupa está sujeta a todas las evaluaciones de riesgo por parte de Bupa y a la recepción de todos los pagos de prima requeridos.

Sheet Resumen tarifas
A17: Cotización de Seguro Médico - Bupa Global Health Plans
A19: Nombre del asegurado titular : | C19: =+'INGRESO DE DATOS'!$D$15 -> Nombre del Cliente
A21: Agencia / Agente : | C21: =+'INGRESO DE DATOS'!$D$23 -> Nombre del Agente
A23: Número de adultos en la póliza : | C23: 2 | E23: Edad del asegurado titular : | G23: =+'INGRESO DE DATOS'!$D$19 -> 34
A26: Número de hijos en la póliza : | C26: =+'INGRESO DE DATOS'!$H$17 -> 0 | E26: Edad del (de la) cónyuge : | G26: =+'INGRESO DE DATOS'!$H$19 -> 35
D29: FECHA DE COTIZACION : | E29: =NOW() -> 2021-01-13T13:38:21.570
A41: Global Ultimate Health Plan
A42: Deducibles | C42: PLAN 1 | D42: PLAN 2 | E42: PLAN 3
A43: Dentro del país de residencia | C43: 1000 | D43: 2000 | E43: 3500
A44: Fuera del país de residencia | C44: 1000 | D44: 2000 | E44: 3500
C45: Tarifas Anuales
C46: =+'Global Ultimate Health Plan'!N31 -> 1070462.5 | D46: =+'Global Ultimate Health Plan'!O31 -> 699219 | E46: =+'Global Ultimate Health Plan'!P31 -> 503092
C47: Tarifas Semestrales
C48: =+'Global Ultimate Health Plan'!N42 -> 1118584.375 | D48: =+'Global Ultimate Health Plan'!O42 -> 730634.9175 | E48: =+'Global Ultimate Health Plan'!P42 -> 525682.2025
C49: Tarifas Trimestrales
C50: =+'Global Ultimate Health Plan'!N53 -> 1150665.625 | D50: =+'Global Ultimate Health Plan'!O53 -> 751578.8625 | E50: =+'Global Ultimate Health Plan'!P53 -> 540742.3375
C51: Tarifas Mensuales
C52: =+'Global Ultimate Health Plan'!N64 -> 1188093.75 | D52: =+'Global Ultimate Health Plan'!O64 -> 776013.465 | E52: =+'Global Ultimate Health Plan'!P64 -> 558312.495
A56: Global Elite Health Plan
A57: Deducibles | C57: PLAN 1 | D57: PLAN 2 | E57: PLAN 3 | F57: PLAN 4 | G57: PLAN 5
A58: Dentro del país de residencia | C58: 1000 | D58: 2000 | E58: 3500 | F58: 5000 | G58: 10000
A59: Fuera del país de residencia | C59: 1000 | D59: 2000 | E59: 3500 | F59: 5000 | G59: 10000
C60: Tarifas Anuales
C61: =+'Global Elite Health Plan'!M37 -> 443105.5 | D61: =+'Global Elite Health Plan'!N37 -> 320305 | E61: =+'Global Elite Health Plan'!O37 -> 248312.5 | F61: =+'Global Elite Health Plan'!P37 -> 215760 | G61: =+'Global Elite Health Plan'!Q37 -> 168084
C62: Tarifas Semestrales
C63: =+'Global Elite Health Plan'!M48 -> 462996.31 | D63: =+'Global Elite Health Plan'!N48 -> 334669.7875 | E63: =+'Global Elite Health Plan'!O48 -> 259437.625 | F63: =+'Global Elite Health Plan'!P48 -> 225420.2625 | G63: =+'Global Elite Health Plan'!Q48 -> 175598.8425
C64: Tarifas Trimestrales
C65: =+'Global Elite Health Plan'!M59 -> 476256.85 | D65: =+'Global Elite Health Plan'!N59 -> 344246.3125 | E65: =+'Global Elite Health Plan'!O59 -> 266854.375 | F65: =+'Global Elite Health Plan'!P59 -> 231860.4375 | G65: =+'Global Elite Health Plan'!Q59 -> 180608.7375
C66: Tarifas Mensuales
C67: =+'Global Elite Health Plan'!M70 -> 491727.48 | D67: =+'Global Elite Health Plan'!N70 -> 355418.925 | E67: =+'Global Elite Health Plan'!O70 -> 275507.25 | F67: =+'Global Elite Health Plan'!P70 -> 239373.975 | G67: =+'Global Elite Health Plan'!Q70 -> 186453.615
A69: Global Premier Health Plan
A70: Deducibles | C70: PLAN 1 | D70: PLAN 2 | E70: PLAN 3 | F70: PLAN 4
A71: Dentro del país de residencia | C71: 1000 | D71: 2000 | E71: 5000 | F71: 10000
A72: Fuera del país de residencia | C72: 1000 | D72: 2000 | E72: 5000 | F72: 10000
C73: Tarifas Anuales
C74: =+'Global Premier Health Plan'!N47 -> 289565 | D74: =+'Global Premier Health Plan'!O47 -> 209496 | E74: =+'Global Premier Health Plan'!P47 -> 150481 | F74: =+'Global Premier Health Plan'!Q47 -> 112824.5
C75: Tarifas Semestrales
C76: =+'Global Premier Health Plan'!N58 -> 302546.4875 | D76: =+'Global Premier Health Plan'!O58 -> 218874.3825 | E76: =+'Global Premier Health Plan'!P58 -> 157203.7075 | F76: =+'Global Premier Health Plan'!Q58 -> 117852.665
C77: Tarifas Trimestrales
C78: =+'Global Premier Health Plan'!N69 -> 311200.8125 | D78: =+'Global Premier Health Plan'!O69 -> 225126.6375 | E78: =+'Global Premier Health Plan'!P69 -> 161685.5125 | F78: =+'Global Premier Health Plan'!Q69 -> 121204.775
C79: Tarifas Mensuales
C80: =+'Global Premier Health Plan'!N80 -> 321297.525 | D80: =+'Global Premier Health Plan'!O80 -> 232420.935 | E80: =+'Global Premier Health Plan'!P80 -> 166914.285 | F80: =+'Global Premier Health Plan'!Q80 -> 125115.57
A82: Global Select Health Plan
A83: ESTE PRODUCTO NO CUENTA CON COBERTURA DE MATERNIDAD
A84: Deducibles | C84: PLAN A | D84: PLAN 1 | E84: PLAN 2
A85: Dentro del país de residencia | C85: 2000 | D85: 3500 | E85: 5000
A86: Fuera del país de residencia | C86: 2000 | D86: 3500 | E86: 5000
C87: Tarifas Anuales
C88: =+'Global Select Health Plan'!M44 -> 148929.5 | D88: =+'Global Select Health Plan'!N44 -> 124830.5 | E88: =+'Global Select Health Plan'!O44 -> 110475.5
C89: Tarifas Semestrales
C90: =+'Global Select Health Plan'!M55 -> 155582.39 | D90: =+'Global Select Health Plan'!N55 -> 130398.935 | E90: =+'Global Select Health Plan'!O55 -> 115397.96
C91: Tarifas Trimestrales
C92: =+'Global Select Health Plan'!M66 -> 160017.65 | D92: =+'Global Select Health Plan'!N66 -> 134111.225 | E92: =+'Global Select Health Plan'!O66 -> 118679.6
C93: Tarifas Mensuales
C94: =+'Global Select Health Plan'!M77 -> 165192.12 | D94: =+'Global Select Health Plan'!N77 -> 138442.23 | E94: =+'Global Select Health Plan'!O77 -> 122508.18
A96: Global Major Medical Health Plan
A97: Deducibles | C97: PLAN 1 | D97: PLAN 2
A98: Dentro del país de residencia | C98: 10000 | D98: 20000
A99: Fuera del país de residencia | C99: 10000 | D99: 20000
C100: Tarifas Anuales
C101: ='Global Major Medical Health Pla'!M42 -> 97614 | D101: ='Global Major Medical Health Pla'!N42 -> 71340
C102: Tarifas Semestrales
C103: ='Global Major Medical Health Pla'!M53 -> 102715.3175 | D103: ='Global Major Medical Health Pla'!N53 -> 75258.9875
C104: Tarifas Trimestrales
C105: ='Global Major Medical Health Pla'!M64 -> 105632.8625 | D105: ='Global Major Medical Health Pla'!N64 -> 77388.3125
C106: Tarifas Mensuales
C107: ='Global Major Medical Health Pla'!M75 -> 109036.665 | D107: ='Global Major Medical Health Pla'!N75 -> 79872.525
A109: $937.5 de costo administrativo anual aplica a la primera cuota
A111: Tarifas en MXN$ - Válidas desde el 01 de enero de 2021
A113: Este presupuesto solamente tiene carácter informativo y en ningún momento expresa compromiso legal para suministrarle cobertura de seguro. La emisión de una póliza de seguro Bupa está sujeta a todas las evaluaciones de riesgo por parte de Bupa y a la recepción de todos los pagos de prima requeridos.
